Cogmind - Beta 15 @@@ ROGUE MODE // 2025.05.11 @ 07:07:14 Player: szymekc Result: Establishing 0b11! Performance ------------- Evolutions (9) 4500 Regions Visited (33) 6600 Robots Destroyed (279) 1395 Value Destroyed (11725) 11725 Prototype IDs (366) 7320 Alien Tech Used (5) 1000 Bonus (30596) 30596 TOTAL SCORE: 63136 Bonus ------- High Alert Combat Kills 1616 Follower Combat Kills 786 Awakened Behemoth Slayer 1000 Registered with UFD 300 Met Optimus in HQ 500 Met Zhirov 300 Met Warlord at Base 500 MAIN.C Attacked Warlord 500 Warlord Defense Kills 94 Scanned by Researcher 500 Destroyed MAIN.C Guards 500 Met MAIN.C 5000 Destroyed MAIN.C Shell 5000 Destroyed MAIN.C 10000 Met Architect 300 Destroyed A8 300 Destroyed A6 400 Win 3000 Cogmind --------- Core Integrity 310/1600 Matter 237/300 Energy 317/360 System Corruption 3% Temperature Cool (8) Movement Hovering (47) Location 0b11 Command Parts ------- > --- POWER (2) -------- Zero-point Reactor Concept Zero-point Core > --- PROPULSION (8) --- Combat Antigrav System Combat Antigrav System Concept Combat Aerolev Unit Concept Gyrokinetic System Concept Gyrokinetic System Concept Gyrokinetic System > --- UTILITY (12) ----- Concept Antigrav Storage Unit Spectral Analyzer Experimental Terrain Scan Processor Experimental Core Analyzer Experimental Core Analyzer Femtoactuators Graphene Brace Experimental Force Field > --- WEAPON (3) ------- Nanosword > --- INVENTORY (25) --- Experimental Antimatter Reactor Experimental Antimatter Reactor Vortex Chain Reactor Cooled Antigrav System Concept Chromion Battery (800) Concept NT7 Matterbank (750) Long-range Terrain Scanner Mini Quantum Capacitor Experimental Force Field Experimental Force Field Terrabomb Compact HERF Cannon Concept Plasma Driver Improved Potential Cannon Concept Miniperforator Neutron Missile Launcher Force Lance Peak State ------------ > --- POWER ------------ Concept Zero-point Core Concept Zero-point Core > --- PROPULSION ------- Experimental Antigrav System Experimental Antigrav System Gravjet Array Concept Combat Aerolev Unit Concept Combat Aerolev Unit Concept Gyrokinetic System Concept Gyrokinetic System > --- UTILITY ---------- Concept Antigrav Storage Unit Spectral Analyzer Experimental Active Sensor Suite Concept Melee Reflex Suite Heavy Regenerative Plating Concept Network Penetrator Concept Network Penetrator Concept Impact Drone Bay Concept Navigation Harness > --- WEAPON ----------- Concept Blasthammer Concept Deflector Sword Experimental Jetlance > --- INVENTORY -------- Experimental Antimatter Reactor Experimental Antimatter Reactor Concept Zero-point Core Concept Gyrokinetic System Concept Gyrokinetic System Concept Chromion Battery Concept NT7 Matterbank Concept Weapon Articulator Mini Quantum Capacitor Femtoactuators Femtoactuators Advanced Transmission Jammer Experimental ECM Suite Graphene Brace Transdimensional Reconstructor Terrabomb Compact HERF Cannon Concept Plasma Driver Concept Miniperforator Neutron Missile Launcher Concept Blasthammer [Rating: 303] Favorites ----------- Power Concept Zero-point Core Engine Light Angular Momentum Engine Power Core Concept Zero-point Core Reactor Heavy Antimatter Reactor Propulsion Cooled Cesium-ion Thruster Treads Light Treads Leg Carbon-fiber Leg Hover Unit Concept Gyrokinetic System Flight Unit Cooled Cesium-ion Thruster Utility Medium Storage Unit Device Advanced Sensor Array Storage Medium Storage Unit Processor Experimental Signal Interpreter Hackware Advanced Hacking Suite Protection Heavy Regenerative Plating Weapon Enhanced Autogun Energy Gun Improved EM Shotgun Energy Cannon Advanced Beam Cannon Ballistic Gun Enhanced Autogun Ballistic Cannon Improved Light Cannon Launcher Rocket Launcher Special Weapon CPS Tube Impact Weapon Concept Blasthammer Slashing Weapon Concept Deflector Sword Piercing Weapon Heavy Pick Special Melee Weapon Improved Datajack Build | -11 -10 -10 -9 -9 -8 -8 -8 -8 -6 -6 -6 -6 -6 -6 -5 -5 -5 -5 -5 -4 -4 -4 -4 -4 -3 -3 -3 -2 -2 -2 -1 -1 -1 ------- Run | Yrd Mat Min Mat Min Mat Sto Rec Scr Fac Was Fac Low Low Zio Pro Fac Upp Upp Zhi Pro Fac Upp Upp War Pro Res Tes Res Qua Frg Acc Com Ac0 Slots Evolved 18 | . . . 2 . 2 . . . 4 . . . . . . 2 . . . . 2 . . . . 2 . 2 . . 2 . . Power 1 | . . . . . . . . . . . . . . . . 1 . . . . . . . . . . . . . . . . . Propulsion 6 | . . . 1 . 1 . . . 1 . . . . . . 1 . . . . 1 . . . . . . 1 . . . . . Utility 10 | . . . 1 . 1 . . . 3 . . . . . . . . . . . 1 . . . . 2 . 1 . . 1 . . Weapon 1 | . . . . . . . . . . . . . . . . . . . . . . . . . . . . . . . 1 . . Parts Attached 239 | 6 7 1 19 7 13 11 . 9 32 . 4 1 2 3 3 8 3 2 4 1 5 1 . 4 . 11 7 3 2 37 5 23 5 Power 29 | 1 1 1 2 1 1 3 . . 4 . 1 . . . . 1 1 . 2 . . . . . . 2 1 . . 4 . 3 . Engine 11 | 1 1 . 2 . 1 2 . . 3 . . . . . . 1 . . . . . . . . . . . . . . . . . Core 9 | . . 1 . 1 . . . . 1 . 1 . . . . . 1 . 1 . . . . . . . . . . 2 . 1 . Reactor 9 | . . . . . . 1 . . . . . . . . . . . . 1 . . . . . . 2 1 . . 2 . 2 . Propulsion 62 | 2 . . 6 1 5 3 . 4 6 . 1 . 1 . . 1 . . . . 2 . . 2 . 2 2 3 . 15 . 5 1 Treads 9 | 2 . . 6 1 . . . . . . . . . . . . . . . . . . . . . . . . . . . . . Leg 8 | . . . . . 5 3 . . . . . . . . . . . . . . . . . . . . . . . . . . . Wheel . | . . . . . . . . . . . . . . . . . . . . . . . . . . . . . . . . . . Hover 16 | . . . . . . . . . . . . . . . . . . . . . . . . . . . . . . 10 . 5 1 Flight 29 | . . . . . . . . 4 6 . 1 . 1 . . 1 . . . . 2 . . 2 . 2 2 3 . 5 . . . Utility 89 | 1 3 . 3 2 3 1 . 3 18 . 2 1 . 1 2 3 1 1 2 1 2 . . 1 . 7 2 . . 11 5 10 3 Device 40 | 1 2 . 2 1 2 1 . . 4 . . 1 . 1 1 2 1 . . . 1 . . 1 . 1 . . . 7 3 7 1 Storage 9 | . 1 . 1 . 1 . . 1 1 . . . . . 1 . . . . . . . . . . 1 . . . 1 . 1 . Processor 18 | . . . . 1 . . . 1 4 . 1 . . . . . . . . . 1 . . . . 2 2 . . 2 . 2 2 Hackware 15 | . . . . . . . . 1 7 . . . . . . 1 . 1 1 1 . . . . . 1 . . . . 2 . . Protection 7 | . . . . . . . . . 2 . 1 . . . . . . . 1 . . . . . . 2 . . . 1 . . . Artifact . | . . . . . . . . . . . . . . . . . . . . . . . . . . . . . . . . . . Weapon 59 | 2 3 . 8 3 4 4 . 2 4 . . . 1 2 1 3 1 1 . . 1 1 . 1 . . 2 . 2 7 . 5 1 Energy Gun 7 | 1 . . 2 . 2 . . . 1 . . . . . . . . . . . . . . . . . 1 . . . . . . Energy Cannon 11 | . . . 2 1 . . . . . . . . 1 . 1 2 . . . . . . . 1 . . . . 1 . . 2 . Ballistic Gun 9 | 1 . . 2 . . 4 . 2 . . . . . . . . . . . . . . . . . . . . . . . . . Ballistic Cannon 7 | . 2 . 1 1 2 . . . . . . . . . . . . . . . . . . . . . . . . . . 1 . Launcher 5 | . . . 1 1 . . . . . . . . . 1 . . . . . . . . . . . . 1 . . 1 . . . Special Weapon 3 | . 1 . . . . . . . . . . . . . . . 1 . . . . 1 . . . . . . . . . . . Impact Weapon 3 | . . . . . . . . . . . . . . . . . . . . . 1 . . . . . . . . 1 . 1 . Slashing Weapon 6 | . . . . . . . . . 1 . . . . . . . . . . . . . . . . . . . 1 3 . . 1 Piercing Weapon 7 | . . . . . . . . . 1 . . . . 1 . 1 . 1 . . . . . . . . . . . 2 . 1 . Special Melee Weapon 1 | . . . . . . . . . 1 . . . . . . . . . . . . . . . . . . . . . . . . Unidentified Prototypes 29 | . . . 3 . 1 2 . . 1 . 1 . . 1 3 1 . . 3 . 1 . . 3 . 4 3 . 1 1 . . . Corrupted Parts 2 | . . . . . . . . . . . . . . . . . . . . . . . . . . . . . . 2 . . . System Corruption 11 | . . . . . . . . . . . . . . . . . . . . . . . . . . . . . . 11 . . . Parts Lost 34 | . . . 1 2 . 1 . . 1 . . . . . . 2 2 1 . . 1 . . . . . . . . 5 1 8 9 Power 6 | . . . . . . . . . 1 . . . . . . 1 2 . . . . . . . . . . . . 2 . . . Propulsion 6 | . . . . . . . . . . . . . . . . . . . . . . . . . . . . . . . . 4 2 Utility 18 | . . . 1 1 . 1 . . . . . . . . . 1 . 1 . . 1 . . . . . . . . 3 1 2 6 Weapon 4 | . . . . 1 . . . . . . . . . . . . . . . . . . . . . . . . . . . 2 1 Highest Loss Streak 7 | . . . 1 1 . 1 . . 1 . . . . . . 2 2 1 . . 1 . . . . . . . . 2 1 6 7 To Critical Strikes . | . . . . . . . . . . . . . . . . . . . . . . . . . . . . . . . . . . Average Backups 14 | . 5 8 15 19 19 19 20 17 7 7 8 9 9 9 10 9 8 9 8 9 8 9 9 9 10 9 9 8 8 16 19 19 18 Power . | . . . . . . 1 1 . . . . . . . . . . . . 1 . . . . . . . . . 1 3 3 3 Propulsion 3 | . 1 2 7 9 5 5 5 3 . . 1 2 2 1 1 . 1 1 1 1 1 1 1 . . . . . . 4 2 . . Utility 5 | . . 2 2 3 5 6 7 6 4 5 4 5 5 5 6 6 5 6 5 5 5 6 6 6 7 5 5 4 3 5 7 7 7 Weapon 4 | . 3 4 6 6 7 7 7 6 1 1 1 1 1 2 2 1 1 1 1 1 1 1 1 1 2 2 3 3 3 2 5 5 5 Tool/Special . | . . . . . . . . . . . . . . . . . . . . . . . . . . . . . . . . . . Unused Backups 58 | . 1 . 8 4 4 6 . 1 7 . 4 1 . . 1 2 . . 1 . 1 . . 1 . 2 . . 1 7 . . 6 Power 5 | . . . . . . 1 . . . . 1 . . . . . . . . . . . . . . . . . . 1 . . 2 Propulsion 13 | . . . 7 3 . . . . . . 1 . . . . . . . . . . . . . . . . . . 1 . . 1 Utility 22 | . . . . . 1 1 . 1 4 . 1 1 . . . 2 . . 1 . 1 . . 1 . 2 . . 1 3 . . 2 Weapon 17 | . 1 . 1 1 3 4 . . 3 . 1 . . . 1 . . . . . . . . . . . . . . 2 . . . Tool/Special 1 | . . . . . . . . . . . . . . . . . . . . . . . . . . . . . . . . . 1 Average Slot Usage (%) 93 | . 96 100 94 91 97 99 100 98 95 100 100 100 100 99 98 97 96 91 94 94 90 94 94 94 94 93 94 90 93 85 85 78 78 Engine 4 | . 14 1 10 1 6 9 9 8 5 6 2 . . . . 4 2 . . . . . . . . . . . . . . . . Core 3 | . . 12 . 9 2 . . . . . 3 6 6 6 6 5 4 5 2 . 2 5 5 5 5 2 . . . 2 8 6 4 Reactor 1 | . . . . . . . . . . . . . . . . . . . 2 5 5 5 5 5 5 5 9 8 8 5 . 1 4 Treads 7 | . 28 28 32 33 1 . . . . . . . . . . . . . . . . . . . . . . . . . . . . Leg 6 | . . . . . 34 36 36 20 . . . . . . . . . . . . . . . . . . . . . . . . . Hover 4 | . . . . . . . . . . . . . . . . . . . . . . . . . . . . . . 14 28 26 26 Flight 13 | . . . . . . . . 15 33 33 33 33 33 33 33 34 35 35 35 35 30 31 31 31 31 28 28 26 30 13 . . . Device 13 | . 18 14 16 5 16 17 18 12 7 6 7 9 13 6 7 8 7 11 11 11 14 15 15 15 15 13 14 16 17 15 16 17 18 Storage 7 | . 6 14 11 11 9 9 9 8 5 6 6 6 6 6 6 5 5 5 5 5 5 5 5 5 5 4 4 4 4 5 4 4 4 Processor 8 | . . . . 9 9 9 9 10 8 6 9 13 13 13 13 11 11 11 11 5 8 10 10 10 10 11 10 13 13 12 8 10 14 Hackware 5 | . . . . . . . . 4 19 20 16 13 13 13 13 11 11 8 11 16 10 10 10 10 10 13 12 8 8 3 4 1 . Protection 1 | . . . . . . . . . 2 6 4 3 . 5 4 2 2 . . . . . . . . 1 4 4 4 3 4 2 2 Energy Gun 1 | . . . 8 2 5 5 . . . . . . . . . . . . . . . . . . . . . . . . . . . Ballistic Gun 4 | . . . 5 . . 12 18 18 2 6 6 6 6 . . . . . . . . . . . . . . . . . . . . Ballistic Cannon 4 | . 26 28 5 11 12 . . . . . . . . . . . . . . . . . . . . . . . . . . . . Impact Weapon 1 | . . . . . . . . . . . . . . . . . . . . . 4 5 5 5 5 4 4 4 2 . 4 3 2 Piercing Weapon 2 | . . . . . . . . . 3 6 6 6 6 12 6 5 5 5 5 11 5 5 5 5 5 4 3 4 1 2 4 1 . Peak Build Rating 303 | 6 11 12 22 24 42 46 44 45 71 72 77 77 79 85 82 93 94 94 103 104 122 123 120 129 128 163 161 180 191 280 303 288 269 Average Rating 94 | 4 9 11 18 22 38 43 44 43 52 71 74 75 76 75 75 86 90 89 95 103 119 120 120 126 128 149 158 170 184 221 294 250 223 On Entrance 99 | . 6 10 12 22 24 42 44 44 42 70 72 76 77 72 76 72 91 94 91 103 104 122 120 120 128 128 156 161 179 191 280 288 269 Naked Turns . | . . . . . . . . . . . . . . . . . . . . . . . . . . . . . . . . . . Heaviest Build 119 | 10 34 34 56 61 63 57 57 66 29 28 28 27 26 30 30 35 32 36 35 35 43 43 43 43 43 49 49 50 55 119 106 116 95 Greatest Support 130 | 40 40 40 63 63 73 73 62 62 29 29 30 30 30 30 30 36 36 45 36 36 44 44 44 45 45 49 50 57 57 130 130 130 122 Greatest Overweight (x) 3 | . . . . 1 . . . 3 . . . . . . . . 1 1 . . 1 . . . . . . . . 1 . 1 . Average Overweight (x) . | . . . . . . . . . . . . . . . . . . . . . . . . . . . . . . . . . . Largest Inventory Capacity 25 | 5 15 15 20 20 20 20 20 20 15 10 10 10 10 10 10 10 10 10 10 10 10 10 10 10 10 10 10 10 10 25 25 25 25 Average Capacity 16 | 5 9 15 16 20 20 20 20 18 9 10 10 10 10 10 10 10 10 10 10 10 10 10 10 10 10 10 10 10 10 19 25 25 25 Most Carried 25 | 2 8 9 20 20 20 20 20 20 14 10 10 10 10 10 10 10 10 10 10 10 10 10 9 10 10 10 10 10 10 25 23 25 22 Average Carried 14 | . 5 8 15 19 19 19 20 17 8 9 9 10 9 9 9 9 9 9 9 10 8 9 9 9 10 9 9 9 9 16 20 21 20 Final Capacity 25 | 5 15 15 20 20 20 20 20 15 10 10 10 10 10 10 10 10 10 10 10 10 10 10 10 10 10 10 10 10 10 25 25 25 25 Final Carried 24 | 2 8 9 20 20 20 20 20 15 8 10 10 10 10 10 10 10 10 10 10 10 9 9 9 10 10 10 10 10 10 24 18 20 19 Class Distribution -------------------- 32% | Mutant 23% | Hacker-Sprinter 13% | Commander-Mutant 11% | Hacker-Scout 4% | Sprinter 4% | Gladiator 3% | Hacker-Ninja 3% | Scavenger-Mutant Dominant Class ---------------- Mutant | -10/Materials Mutant | -10/Mines Mutant | -9/Materials Mutant | -9/Mines Mutant | -8/Materials Scavenger-Mutant | -8/Storage Commander-Mutant | -8/Recycling Commander-Mutant | -8/Scraptown Hacker-Sprinter | -6/Factory Hacker-Sprinter | -6/Waste Hacker-Sprinter | -6/Factory Hacker-Sprinter | -6/Lower Caves Hacker-Scout | -6/Lower Caves Hacker-Sprinter | -6/Zion Hacker-Sprinter | -5/Proximity Caves Hacker-Sprinter | -5/Factory Hacker-Sprinter | -5/Upper Caves Hacker-Sprinter | -5/Upper Caves Hacker-Sprinter | -5/Zhirov Hacker-Sprinter | -4/Proximity Caves Hacker-Sprinter | -4/Factory Hacker-Scout | -4/Upper Caves Hacker-Scout | -4/Upper Caves Hacker-Scout | -4/Warlord Hacker-Scout | -3/Proximity Caves Hacker-Scout | -3/Research Hacker-Scout | -3/Testing Hacker-Ninja | -2/Research Hacker-Ninja | -2/Quarantine Sprinter | -2/Protoforge Hacker-Scout | -1/Access Gladiator | -1/Command Mutant | -1/Access_0 Resources | -11 -10 -10 -9 -9 -8 -8 -8 -8 -6 -6 -6 -6 -6 -6 -5 -5 -5 -5 -5 -4 -4 -4 -4 -4 -3 -3 -3 -2 -2 -2 -1 -1 -1 ----------- Run | Yrd Mat Min Mat Min Mat Sto Rec Scr Fac Was Fac Low Low Zio Pro Fac Upp Upp Zhi Pro Fac Upp Upp War Pro Res Tes Res Qua Frg Acc Com Ac0 Matter Collected 7613 | 287 379 155 640 377 349 559 131 62 262 . 472 77 52 81 74 130 80 65 100 30 70 30 . 80 . 180 130 . 110 2189 81 319 62 Remotely . | . . . . . . . . . . . . . . . . . . . . . . . . . . . . . . . . . . Salvage Created 13455 | 85 691 97 1426 389 650 1159 288 . 358 . 847 93 541 . 37 135 226 75 166 26 315 68 . 74 129 879 323 39 170 2980 419 623 147 Parts 571 | 5 28 . 96 26 35 64 16 . 24 . 32 5 12 . 2 9 8 5 5 4 2 . . . 7 11 6 . 2 142 17 6 2 Haulers Intercepted 36 | . 2 . 6 . 5 5 . . 2 . 4 . . . . . . . . . 2 . . . . 7 2 . . . 1 . . Recyclers Shooed 2 | . . . . . 1 . 1 . . . . . . . . . . . . . . . . . . . . . . . . . . Parts Field Recycled . | . . . . . . . . . . . . . . . . . . . . . . . . . . . . . . . . . . Retrieved Matter . | . . . . . . . . . . . . . . . . . . . . . . . . . . . . . . . . . . Parts Self-Destructed 32 | . . . . . . . . . . . . 6 . . 3 . 3 5 4 4 . . . . 7 . . . . . . . . Prevented 4 | . . . . . . . . . . . . 4 . . . . . . . . . . . . . . . . . . . . . Kills | -11 -10 -10 -9 -9 -8 -8 -8 -8 -6 -6 -6 -6 -6 -6 -5 -5 -5 -5 -5 -4 -4 -4 -4 -4 -3 -3 -3 -2 -2 -2 -1 -1 -1 ------- Run | Yrd Mat Min Mat Min Mat Sto Rec Scr Fac Was Fac Low Low Zio Pro Fac Upp Upp Zhi Pro Fac Upp Upp War Pro Res Tes Res Qua Frg Acc Com Ac0 Combat Hostiles Destroyed 184 | . 15 6 27 15 10 21 6 . . . 2 . . . . . 1 1 . 2 . . . 1 1 1 . . 1 52 7 12 3 Melee 45 | . . . . 1 . . . . . . 2 . . . . . . . . 2 . . . . . . . . 1 29 3 7 . Guns 43 | . . . 10 4 3 20 6 . . . . . . . . . . . . . . . . . . . . . . . . . . Cannons 42 | . 15 6 9 3 7 . . . . . . . . . . . . . . . . . . . . . . . . 1 1 . . AOE 35 | . . . 8 7 . . . . . . . . . . . . . . . . . . . . . . . . . 16 2 2 . Classes Destroyed 26 | 2 5 1 4 1 1 . 1 . . . 1 1 . . . . 1 . . 1 . . . 1 . . 1 . . 5 . . . Worker 14 | . . 1 5 2 . 1 . . 2 . . . . . . 2 . . . . . . . . . . . . . . . 1 . Builder 8 | . . . 4 1 . . . . 1 . 1 . . . . 1 . . . . . . . . . . . . . . . . . Tunneler 4 | 1 . . 1 . . 1 . . . . . . . . . . . . . . . . . . . . . . . . 1 . . Hauler 36 | . 2 . 6 . 5 5 . . 2 . 4 . . . . . . . . . 2 . . . . 7 2 . . . 1 . . Recycler 12 | 1 3 . . 3 1 . . . 1 . 2 . . . . . . . . . 1 . . . . . . . . . . . . Minesweeper 2 | . . . . . . . . . . . . 1 . . 1 . . . . . . . . . . . . . . . . . . Operator 6 | . 1 . . . 1 . . . 1 . . . . . . 1 . . . . . . . . . . . . 2 . . . . Drone 9 | . . . . . . . . . . . . . . . . . . . . 2 . . . . . . . . . 7 . . . Watcher 18 | . 1 . 2 . 1 1 . . . . 3 . . . . 2 . . . . . . . . . 3 2 1 1 1 . . . Swarmer 35 | . 3 . 6 6 3 6 . . . . . . . . . . . . . . . . . . . . . . . . 5 6 . Saboteur 1 | . . . . . . . . . . . . . . . . . . . . . . . . . . . . . . 1 . . . Grunt 54 | . 12 6 11 2 3 12 . . . . 1 . . . . . . . . . . . . . . . . . 1 6 . . . Brawler 2 | . . . 1 . . . . . . . . . . . . . . . . . . . . . . . . . . 1 . . . Duelist 3 | . . . 1 . . . 1 . . . . . . . . . . . . . . . . . . . . . . 1 . . . Protector 2 | . . . . . . . . . . . . . . . . . . . . . . . . 1 . . . . . 1 . . . Researcher 4 | . . . . . . . . . . . . . . . . . . . . . . . . . . . 1 . . 3 . . . Sentry 28 | . . . 8 . 2 3 3 . . . . . . . . . . . . . . . . . . 1 . . . 9 1 1 . Demolisher 2 | . . . . . . . 2 . . . . . . . . . . . . . . . . . . . . . . . . . . Hunter 2 | . . . . . 2 . . . . . . . . . . . . . . . . . . . . . . . . . . . . Programmer 13 | . . . . . . . . . . . 1 . . . . . . . . . . . . . . . . . . 11 1 . . Behemoth 3 | . . . . . . . . . . . . . . . . . 1 1 . . . . . . 1 . . . . . . . . M Guard 2 | . . . . . . . . . . . . . . . . . . . . . . . . . . . . . . . . 2 . Enhanced Grunt 1 | . . . . . . . . . . . . . . . . . . . . . . . . . . . . . . . . . 1 Hotshot 2 | . . . . . . . . . . . . . . . . . . . . . . . . . . . . . . 2 . . . Decapitator 6 | . . . . . . . . . . . . . . . . . . . . . . . . . . . . . . 6 . . . Immortal 4 | . . . . . . . . . . . . . . . . . . . . . . . . . . . . . . 4 . . . Combat Programmer 2 | . . . . . . . . . . . . . . . . . . . . . . . . . . . . . . . . 2 . Alpha 7 2 | . . . . . . . . . . . . . . . . . . . . . . . . . . . . . . 2 . . . V-Series 1 | . . . . . . . . . . . . . . . . . . . . . . . . . . . . . . 1 . . . Tinkerer 1 | . . . . . . . . . . . . . . . . . . . . . . . . . . . . . . 1 . . . Assembled 7 | . . . . 7 . . . . . . . . . . . . . . . . . . . . . . . . . . . . . Best Kill Streak 8 | 2 4 2 8 4 2 5 3 . 2 . 2 1 . . 1 3 1 1 . 1 2 . . 1 1 3 1 1 3 8 6 7 2 Combat Bots Only 8 | . 3 2 4 3 2 5 3 . . . 1 . . . . . 1 1 . 1 . . . 1 1 1 . . 1 8 5 7 2 Max Kills in Single Turn 5 | 1 2 2 5 2 1 2 1 . 1 . 1 1 . . 1 1 1 1 . 1 1 . . 1 1 1 1 1 1 3 2 2 1 Gunslinging . | . . . . . . . . . . . . . . . . . . . . . . . . . . . . . . . . . . Exploded 3 | . . . 3 2 . . . . . . . . . . . . . . . . . . . . . . . . . 3 1 1 . Melee 2 | . . . . 1 . . . . . . 1 . . . . . . . . 1 . . . . . . . . 1 1 1 2 . Uniques/NPCs Destroyed 4 | . . . . . . . . . . . . . . . . . . . . . . . . . . . . . . . . 2 2 MAIN.C Shell (-1/Command) MAIN.C (-1/Command) A8 (-1/Access_0) A6 (-1/Access_0) Combat | -11 -10 -10 -9 -9 -8 -8 -8 -8 -6 -6 -6 -6 -6 -6 -5 -5 -5 -5 -5 -4 -4 -4 -4 -4 -3 -3 -3 -2 -2 -2 -1 -1 -1 -------- Run | Yrd Mat Min Mat Min Mat Sto Rec Scr Fac Was Fac Low Low Zio Pro Fac Upp Upp Zhi Pro Fac Upp Upp War Pro Res Tes Res Qua Frg Acc Com Ac0 Hostile Shots Fired 1196 | . 38 38 64 31 36 80 4 . 65 . 73 1 10 . 9 15 24 12 . 6 23 . . 3 8 10 5 . 10 246 51 96 238 Missed 502 | . 12 9 20 6 11 29 1 . 33 . 36 1 6 . 6 7 7 10 . 2 14 . . 2 4 7 3 . 6 94 21 27 128 Hits 694 | . 26 29 44 25 25 51 3 . 32 . 37 . 4 . 3 8 17 2 . 4 9 . . 1 4 3 2 . 4 152 30 69 110 Melee 19 | . . . 2 . . . . . . . . . 1 . . . . . . . . . . . . . . . . 8 . . 8 Projectile 675 | . 26 29 42 25 25 51 3 . 32 . 37 . 3 . 3 8 17 2 . 4 9 . . 1 4 3 2 . 4 144 30 69 102 AOE 23 | . . . . . . . . . . . . . . . . 2 . . . . . . . . . . . . . 9 . 11 1 Critical Strikes 36 | . . 1 . . 1 1 . . . . . . . . . 1 . . . . . . . 1 . . . . 1 20 2 6 2 Actively Blocked 26 | . . . . . . . . . . . . . . . . . . . . . . . . . . . . . . 18 . 6 2 Part Disruptions 6 | . . . . 1 . . . . . . . . . . . . . . . . . . . . . . . . . 2 . 1 2 Damage Taken 17184 | 34 283 407 764 367 211 774 59 . 416 . 338 . 51 . 66 274 477 43 . . 323 . . 26 100 81 56 . 100 4798 722 2857 3557 Core 2413 | . 57 58 21 34 . 133 . . 110 . 119 . . . . 73 164 . . . 127 . . 11 . 54 26 . . 281 25 295 825 Absorbed by Shields 388 | . . . . . . . . . . . . . . . . . . . . . . . . 11 . . . . . 89 . 116 172 Redirected to Shielding 110 | . . . . . . . . . 11 . 22 . . . . . 77 . . . . . . . . . . . . . . . . Regen/Repaired (Parts) 4000 | . . . 70 . . . . . 15 . . . . . . . . . . . 71 . . 17 . 22 . . 54 1870 489 1303 89 Core Remaining (%) 74 | 100 . 54 . 86 . . . 75 . . . . . . 73 . . . . 76 . . . . 88 . 93 . . 80 . . 19 Volleys Fired 403 | 9 39 26 76 26 35 69 17 . 4 . . . . . . 7 5 1 . . . . . 1 . . 1 . . 81 . 3 3 Largest 2 | 2 2 2 2 2 2 2 2 . 2 . . . . . . 1 1 1 . . . . . 1 . . 1 . . 1 . 1 1 Hottest 200 | 60 100 66 91 90 122 122 50 . 50 . . . . . . 90 30 30 . . . . . 90 . . 100 . . 94 . 140 200 Shots Fired 702 | 18 77 52 150 52 70 138 34 . 9 . 1 1 1 . . 7 5 1 . . . . . 1 . . 1 . . 78 . 3 3 Gun 339 | 18 . . 92 19 26 138 34 . 9 . 1 1 1 . . . . . . . . . . . . . . . . . . . . Cannon 321 | . 76 52 55 17 44 . . . . . . . . . . 7 4 1 . . . . . 1 . . 1 . . 57 . 3 3 Launcher 40 | . . . 3 16 . . . . . . . . . . . . . . . . . . . . . . . . . 21 . . . Special 2 | . 1 . . . . . . . . . . . . . . . 1 . . . . . . . . . . . . . . . . Kinetic 427 | 9 76 52 75 17 44 108 34 . 9 . 1 1 1 . . . . . . . . . . . . . . . . . . . . Thermal 95 | . 1 . 19 . 26 30 . . . . . . . . . 7 4 1 . . . . . 1 . . . . . . . 3 3 Explosive 40 | . . . 3 16 . . . . . . . . . . . . . . . . . . . . . . . . . 21 . . . Electromagnetic 138 | 9 . . 53 19 . . . . . . . . . . . . . . . . . . . . . . . . . 57 . . . Entropic 1 | . . . . . . . . . . . . . . . . . . . . . . . . . . . 1 . . . . . . Robot Hit Streak 16 | 6 5 11 16 8 9 13 16 . 6 . . . . . . . 2 . . . . . . . . . . . . 7 . . 5 Robot Miss Streak 9 | 2 3 3 4 6 5 5 2 . 2 . . 3 . . . . . . . . . . . . . . . . . 9 . . 1 Penetration Max . | . . . . . . . . . . . . . . . . . . . . . . . . . . . . . . . . . . Secondary Targets 2 | . . . . 1 . 1 . . . . . . . . . . . . . . . . . . . . . . . . . . . Max Gunslinging Chain 1 | . . . . 1 . 1 . . . . . . . . . . . . . . . . . . . . . . . . . . . Capacitor 3 | . . . . . . . . . . . . . . . . . . . . . . . . . . . . . . . . . 3 Shots Hit Robots 729 | 12 42 37 97 26 37 76 24 . 19 . 22 2 13 . 1 9 10 1 7 3 6 1 . 3 1 21 5 1 10 115 15 77 36 Core Hits 365 | 3 24 8 61 28 23 45 12 . 9 . 12 1 3 . 1 2 3 . 1 1 2 . . 1 . 3 2 . 1 81 6 25 7 Critical Kills . | . . . . . . . . . . . . . . . . . . . . . . . . . . . . . . . . . . Critical Parts Destroyed 20 | . . . . . . . . . . . . . . . . . . . . . . . . . . 4 1 . . 1 3 8 3 Critical Strikes 92 | . 2 2 1 . 1 3 . . 2 . 2 . 1 . . 1 . . . . . . . . . 6 2 . . 32 4 29 4 Burn 4 | . . . . . 1 3 . . . . . . . . . . . . . . . . . . . . . . . . . . . Blast 5 | . 2 2 1 . . . . . . . . . . . . . . . . . . . . . . . . . . . . . . Smash 22 | . . . . . . . . . . . . . . . . . . . . . . . . . . 4 1 . . 1 3 9 4 Sever 4 | . . . . . . . . . 2 . . . . . . . . . . . . . . . . . . . . 2 . . . Impale 56 | . . . . . . . . . . . 2 . 1 . . 1 . . . . . . . . . 2 . . . 29 1 20 . Sunder 1 | . . . . . . . . . . . . . . . . . . . . . . . . . . . 1 . . . . . . Melee Attacks 653 | . . . . . . . . . 50 . 67 15 23 1 1 26 17 3 7 17 25 4 . 6 5 47 24 6 23 121 28 97 40 Impact 190 | . . . . . . . . . . . . . . . . . . . . . 22 3 . 4 3 39 19 4 15 3 16 40 22 Slashing 107 | . . . . . . . . . 25 . . . . . . . . . . . . . . . . . . . 7 43 4 10 18 Piercing 355 | . . . . . . . . . 24 . 67 15 23 1 1 26 17 3 7 17 3 1 . 2 2 8 5 2 1 75 8 47 . Sneak Attacks 49 | . . . . . . . . . 9 . 7 1 . . 1 5 . . . . 4 . . . . 10 2 . 1 6 2 1 . Combat Hostiles 3 | . . . . . . . . . . . . . . . . . . . . . . . . . . 2 . . . 1 . . . Follow-up Attacks 31 | . . . . . . . . . . . . . . . . . . . . . 1 . . 2 . 5 1 . . 5 3 14 . Martial Strikes 16 | . . . . . . . . . . . . . . . . . . . . . . . . . . . . . . 5 2 9 . Damage Inflicted 41440 | 173 928 834 2761 1049 940 1598 433 . 887 . 1292 171 947 . 79 668 514 . 574 171 645 100 . 130 . 2002 723 101 879 10961 1408 6728 3744 Guns 3726 | 149 . . 1016 207 254 1578 422 . 100 . . . . . . . . . . . . . . . . . . . . . . . . Cannons 4646 | . 925 818 750 162 621 . . . . . . . . . . . 31 . . . . . . . . . 95 . . 1001 . . 243 Explosions 10179 | 24 . . 908 640 . . . . . . . . . . . . . . . . . . . . . . . . . 4107 430 2211 1859 Melee 22647 | . . . . . . . . . 787 . 1292 171 947 . 79 668 483 . 574 171 645 100 . 130 . 2002 628 101 879 5853 978 4517 1642 Ramming 242 | . 3 16 87 40 65 20 11 . . . . . . . . . . . . . . . . . . . . . . . . . . Kinetic 5136 | 79 925 818 871 162 621 1138 422 . 100 . . . . . . . . . . . . . . . . . . . . . . . . Thermal 2243 | 24 . . 526 132 254 440 . . . . . . . . . . 31 . . . . . . . . . . . . . . . 836 Explosive 5270 | . . . 655 508 . . . . . . . . . . . . . . . . . . . . . . . . . 4107 . . . Electromagnetic 1900 | 70 . . 622 207 . . . . . . . . . . . . . . . . . . . . . . . . . 1001 . . . Impact 11597 | . . . . . . . . . . . . . . . . . . . . . 583 100 . 57 . 1756 605 101 415 207 1079 4522 2172 Slashing 4525 | . . . . . . . . . 614 . . . . . . . . . . . . . . . . . . . 464 1991 188 532 736 Piercing 10432 | . . . . . . . . . 173 . 1292 171 947 . 79 668 483 . 574 171 62 . . 73 . 246 23 . . 3655 141 1674 . Entropic 95 | . . . . . . . . . . . . . . . . . . . . . . . . . . . 95 . . . . . . Highest Corruption 26 | . . . 3 3 . . . . 1 11 11 11 11 11 . . . . . . . . . . . . . . . 26 2 8 3 Average Corruption 7 | . . . 2 3 . . . . 1 2 11 11 11 11 . . . . . . . . . . . . . . . 14 1 4 2 Corruption Purged 8 | . . . . . . . . . . . . . . . . . . . . . . . . . . . . . . . . 8 . Corruption Blocked . | . . . . . . . . . . . . . . . . . . . . . . . . . . . . . . . . . . Effects 226 | . . . 28 30 . . . . 4 . 46 11 15 2 . . . . . . . . . . . . . . . 66 4 17 3 Message Errors 55 | . . . 7 9 . . . . 1 . 15 2 4 . . . . . . . . . . . . . . . . 12 1 4 . Matter Fused 56 | . . . 7 6 . . . . 1 . 9 2 2 1 . . . . . . . . . . . . . . . 21 1 5 1 Heat Flow Errors 31 | . . . 8 6 . . . . . . 4 3 1 . . . . . . . . . . . . . . . . 7 . 1 1 Energy Discharges 20 | . . . 2 2 . . . . 1 . 2 2 . 1 . . . . . . . . . . . . . . . 7 . 3 . Parts Rejected 1 | . . . . . . . . . . . . . . . . . . . . . . . . . . . . . . . . 1 . Parts Fused 3 | . . . . . . . . . . . . . . . . . . . . . . . . . . . . . . 2 1 . . Data Loss (minor) 22 | . . . 1 2 . . . . . . 8 . 4 . . . . . . . . . . . . . . . . 5 1 . 1 Data Loss (major) 8 | . . . . 2 . . . . . . . . 2 . . . . . . . . . . . . . . . . 3 . 1 . Misfires 8 | . . . 1 3 . . . . 1 . 1 1 1 . . . . . . . . . . . . . . . . . . . . Alerts 10 | . . . 2 . . . . . . . 4 1 1 . . . . . . . . . . . . . . . . . . 2 . Misdirections 9 | . . . . . . . . . . . 3 . . . . . . . . . . . . . . . . . . 6 . . . Weapon Failures 3 | . . . . . . . . . . . . . . . . . . . . . . . . . . . . . . 3 . . . Overload Shots 1 | . . . . . . . . . . . . . . . . . . . . . . . . 1 . . . . . . . . . Overflow Damage 6686 | . . 19 28 35 15 . . . 59 . 219 64 670 . . 362 92 . 205 61 258 36 . 35 . 711 306 77 473 974 637 808 542 Projectiles 129 | . . 19 . 19 . . . . . . . . . . . . . . . . . . . . . . . . . . 91 . . Explosions 557 | . . . 28 16 . . . . . . . . . . . . . . . . . . . . . . . . . 82 95 169 167 Melee 6000 | . . . . . 15 . . . 59 . 219 64 670 . . 362 92 . 205 61 258 36 . 35 . 711 306 77 473 892 451 639 375 Knockbacks 71 | . 8 9 1 3 5 . . . . . . . . . . . . . . . . 1 . . . 1 . . 1 . 7 22 13 Impact 41 | . . . . . 1 . . . . . . . . . . . . . . . . 1 . . . 1 . . 1 . 5 22 10 Kinetic 25 | . 8 9 1 3 4 . . . . . . . . . . . . . . . . . . . . . . . . . . . . Secondary 5 | . . . . . . . . . . . . . . . . . . . . . . . . . . . . . . . 2 . 3 Self-Inflicted Damage 421 | 34 . . 189 86 . . . . . . . . . . . . . . . . . . . . . . . . . 58 54 . . Shots 9 | 1 . . 3 3 . . . . . . . . . . . . . . . . . . . . . . . . . 1 1 . . Rammed 15 | . 2 2 7 4 . . . . . . . . . . . . . . . . . . . . . . . . . . . . . Targets Rammed 28 | . 2 3 10 4 5 2 2 . . . . . . . . . . . . . . . . . . . . . . . . . . Kicked 9 | . . . . . 5 2 2 . . . . . . . . . . . . . . . . . . . . . . . . . . Crushed 4 | . . 1 3 . . . . . . . . . . . . . . . . . . . . . . . . . . . . . . Highest Temperature 288 | 7 57 186 266 236 19 43 . . 16 . 267 142 203 . . 80 1 3 . . . . . 10 4 1 28 51 63 201 . 150 288 Average Temperature 45 | 4 16 67 51 57 8 22 . . 7 . 112 65 92 . . 31 1 3 . . . . . 7 4 1 11 21 19 96 . 73 123 Received Heat Transfer 1922 | . 123 252 153 53 72 315 27 . 78 . 57 . . . 9 60 48 18 . . 9 . . 4 18 9 9 . 18 453 9 116 12 Siege Activations . | . . . . . . . . . . . . . . . . . . . . . . . . . . . . . . . . . . Martial Activations . | . . . . . . . . . . . . . . . . . . . . . . . . . . . . . . . . . . Shielding Activations . | . . . . . . . . . . . . . . . . . . . . . . . . . . . . . . . . . . Robots Disrupted 2 | . . . 1 . . . . . . . . . . . . . . . . . . . . . . . . . . 1 . . . Combat Hostiles 2 | . . . 1 . . . . . . . . . . . . . . . . . . . . . . . . . . 1 . . . Robots Corrupted 29 | . . . . . 2 . . . . . . . . . . . . . . . . 1 . 1 . 6 2 . 3 6 1 4 3 Combat Hostiles 17 | . . . . . . . . . . . . . . . . . . . . . . 1 . 1 . 1 . . . 6 1 4 3 Parts Fried 45 | . . . 1 2 2 . . . . . . . . . . . . . . . 3 . . 3 . 6 4 2 2 9 3 6 2 Impact Corruptions 101 | . . . . . 2 . . . . . . . . . . . . . . . 3 2 . 1 . 12 5 1 10 3 15 29 18 Robots Melted 1 | . . . . . . 1 . . . . . . . . . . . . . . . . . . . . . . . . . . . Combat Hostiles 1 | . . . . . . 1 . . . . . . . . . . . . . . . . . . . . . . . . . . . Parts Melted 8 | . . . 2 1 1 4 . . . . . . . . . . . . . . . . . . . . . . . . . . . Heat Transferred 3123 | 50 . . 731 250 518 962 . . . . . . . . . . 37 . . . . . . . . . . . . . . . 575 Parts Sabotaged . | . . . . . . . . . . . . . . . . . . . . . . . . . . . . . . . . . . Parts Stolen . | . . . . . . . . . . . . . . . . . . . . . . . . . . . . . . . . . . Parts Stripped . | . . . . . . . . . . . . . . . . . . . . . . . . . . . . . . . . . . Power Chain Reactions 9 | 1 . . 5 3 . . . . . . . . . . . . . . . . . . . . . . . . . . . . . Alert | -11 -10 -10 -9 -9 -8 -8 -8 -8 -6 -6 -6 -6 -6 -6 -5 -5 -5 -5 -5 -4 -4 -4 -4 -4 -3 -3 -3 -2 -2 -2 -1 -1 -1 ------- Run | Yrd Mat Min Mat Min Mat Sto Rec Scr Fac Was Fac Low Low Zio Pro Fac Upp Upp Zhi Pro Fac Upp Upp War Pro Res Tes Res Qua Frg Acc Com Ac0 Maximum Alert Level 4 | . . . 3 1 . 1 1 . 1 . . . . . . . . . . . 2 . . . . . . . . 4 3 3 . Low Security (%) 58 | 100 100 100 67 63 100 32 29 . 95 100 100 . . . . 100 . . . . . . . . . 100 100 100 100 12 . . . Level 1 19 | . . . 9 36 . 67 70 . 4 . . . . . . . . . . . 60 . . . . . . . . 37 . . . Level 2 16 | . . . 20 . . . . . . . . . . . . . . . . . 39 . . . . . . . . 22 31 96 . Level 3 4 | . . . 1 . . . . . . . . . . . . . . . . . . . . . . . . . . 20 68 3 . Level 4 . | . . . . . . . . . . . . . . . . . . . . . . . . . . . . . . 7 . . . Level 5 . | . . . . . . . . . . . . . . . . . . . . . . . . . . . . . . . . . . High Security . | . . . . . . . . . . . . . . . . . . . . . . . . . . . . . . . . . . Max Security . | . . . . . . . . . . . . . . . . . . . . . . . . . . . . . . . . . . Peak Influence 1147 | 5 150 84 703 349 107 358 383 . 225 38 55 . . . . 185 . . . . 549 . . . . 174 182 135 184 1147 1013 733 . Initial 676 | . . 48 . 269 2 20 114 . . 23 26 . . . . 78 . . . . 300 . . . . 94 60 96 64 86 676 609 . Average 215 | 1 62 26 175 158 52 239 252 . 93 24 11 . . . . 136 . . . . 394 . . . . 91 36 115 149 525 830 620 . Influence Increases 11047 | 10 494 173 1157 311 410 717 485 . 692 15 290 10 45 . 210 335 95 105 15 25 709 5 . 367 150 364 408 79 190 1679 817 505 180 Destroy 0b10 Robot/C 3640 | . 300 120 540 160 200 420 160 . . . 40 . . . 20 . 20 20 . . . . . 220 20 20 20 . 20 980 160 200 . Destroy 0b10 Robot/NC 590 | 10 35 5 90 30 40 40 5 . 35 . 50 10 . . 5 30 5 . 15 10 15 5 . 10 . 50 20 5 15 40 10 5 . Destroy Leader 736 | . 76 30 176 30 72 102 . . 4 . 24 . . . . 4 10 10 . . 4 . . . 10 28 8 2 2 92 32 20 . Allied During Kill 244 | . . . . . . 26 115 . . . . . . . 5 . . . . . . . . 77 . . . . . 6 11 4 . Trap Triggered on 0b10 10 | . . . . . . . . . 10 . . . . . . . . . . . . . . . . . . . . . . . . Successful Hack 611 | . 15 . 75 4 13 24 25 . 115 . 34 . . . . 47 . . . . 43 . . . . 63 52 18 54 . 11 18 . Select Force Hacks 360 | . 60 . 30 . 30 30 180 . 30 . . . . . . . . . . . . . . . . . . . . . . . . Disable Machine 690 | . . . 120 15 30 30 . . 15 . . . . . . . . . . . . . . . . . 60 . 75 225 15 45 60 Anti-Garrison Action 350 | . . . . . . . . . . . . . . . . . . . . . . . . . . . . . . 150 200 . . Destroy Structure 591 | . 8 3 96 57 10 . . . 33 . 37 . . . . 44 . . . . 32 . . . . 38 8 9 9 21 33 48 105 Advance Influence 300 | . . . . . . . . . . . . . . . . . . . . . 300 . . . . . . . . . . . . Partial Spotted 615 | . . . . . . 15 . . 90 15 75 . . . . 45 . . . . 45 . . . . 45 75 45 . 105 45 . 15 Lose Combat Pursuer 2010 | . . 15 30 15 15 30 . . 360 . 30 . 45 . 180 165 60 75 . 15 270 . . 60 120 120 165 . 15 60 . 165 . Active Sensor Use 300 | . . . . . . . . . . . . . . . . . . . . . . . . . . . . . . . 300 . . Influence Decreases 10957 | 10 368 299 466 995 368 473 669 109 624 45 316 22 30 15 85 281 262 82 45 30 160 294 210 194 233 395 345 136 151 704 993 892 656 Entered New Map 3236 | . . 78 . 422 5 29 179 109 . 45 12 5 . 15 . 47 67 3 35 5 . 204 50 50 223 46 49 76 51 68 453 344 566 Time Decay 6237 | 10 368 221 456 553 363 434 490 . 399 . 265 17 30 . 65 214 188 79 10 25 150 90 160 114 10 185 127 60 100 586 230 238 . Lost Part 317 | . . . 10 20 . 10 . . 10 . . . . . . 20 7 . . . 10 . . . . . . . . 50 10 80 90 Lost Ally 130 | . . . . . . . . . . . . . . . 20 . . . . . . . . 30 . . . . . . . 80 . Purge Threat 1037 | . . . . . . . . . 215 . 39 . . . . . . . . . . . . . . 164 169 . . . 300 150 . Squads Dispatched 91 | . 3 . 5 . 2 5 . . 14 . 10 . . . . 6 . 1 . . 5 . . . . 8 3 . 4 12 11 2 . Investigation 35 | . 2 . 3 . 1 1 . . 9 . 3 . . . . 3 . 1 . . 2 . . . . 3 . . . 1 6 . . Extermination 26 | . . . . . . . . . 4 . 4 . . . . 1 . . . . 1 . . . . 3 1 . 3 6 3 . . Reinforcement 21 | . 1 . 2 . 1 1 . . 1 . 3 . . . . 2 . . . . 2 . . . . 2 2 . 1 1 2 . . Assault 6 | . . . . . . . . . . . . . . . . . . . . . . . . . . . . . . 4 . 2 . Garrison 3 | . . . . . . 3 . . . . . . . . . . . . . . . . . . . . . . . . . . . Intercept . | . . . . . . . . . . . . . . . . . . . . . . . . . . . . . . . . . . Searches Triggered . | . . . . . . . . . . . . . . . . . . . . . . . . . . . . . . . . . . Construction Impeded . | . . . . . . . . . . . . . . . . . . . . . . . . . . . . . . . . . . Haulers Reinforced 4 | . . . . . . . . . . . 1 . . . . . . . . . . . . . . 2 1 . . . . . . Active Scanning Responses 3 | . . . . . . . . . . . . . . . . . . . . . . . . . . . . . . . 3 . . Cargo Convoy Interrupts . | . . . . . . . . . . . . . . . . . . . . . . . . . . . . . . . . . . Stealth | -11 -10 -10 -9 -9 -8 -8 -8 -8 -6 -6 -6 -6 -6 -6 -5 -5 -5 -5 -5 -4 -4 -4 -4 -4 -3 -3 -3 -2 -2 -2 -1 -1 -1 --------- Run | Yrd Mat Min Mat Min Mat Sto Rec Scr Fac Was Fac Low Low Zio Pro Fac Upp Upp Zhi Pro Fac Upp Upp War Pro Res Tes Res Qua Frg Acc Com Ac0 Distress Signals 55 | . 2 . 5 . 2 2 1 . 4 . 2 . . . . . . . . 1 5 . . 2 . . 2 . . . 2 25 . Communications Jammed 11 | . . . . . . . . . . . . . . . . . . . . . . . . . . 1 5 . 5 . . . . Distress Signals 11 | . . . . . . . . . . . . . . . . . . . . . . . . . . 1 5 . 5 . . . . Times Spotted 488 | . 27 7 40 13 14 28 6 . 34 4 26 1 6 . 9 27 5 5 . 5 24 . . 39 8 15 18 2 9 62 18 29 7 Peak Tracking Total 15 | . 4 2 4 3 3 5 4 . 8 4 7 5 3 . 8 7 4 4 . 4 15 . . 11 8 4 12 1 3 8 5 12 4 Tactical Retreats 80 | . . 1 2 2 1 1 . . 13 . 8 2 3 . 2 7 1 2 . 1 8 . . 3 2 5 3 . 1 3 . 8 1 Traps | -11 -10 -10 -9 -9 -8 -8 -8 -8 -6 -6 -6 -6 -6 -6 -5 -5 -5 -5 -5 -4 -4 -4 -4 -4 -3 -3 -3 -2 -2 -2 -1 -1 -1 ------- Run | Yrd Mat Min Mat Min Mat Sto Rec Scr Fac Was Fac Low Low Zio Pro Fac Upp Upp Zhi Pro Fac Upp Upp War Pro Res Tes Res Qua Frg Acc Com Ac0 Traps Triggered 26 | . . . 2 1 . 2 . . 1 . . . . . . 2 . . . . 2 . . . . . . . . 12 2 2 . Indirectly . | . . . . . . . . . . . . . . . . . . . . . . . . . . . . . . . . . . Trap Hack Attempts . | . . . . . . . . . . . . . . . . . . . . . . . . . . . . . . . . . . Triggered . | . . . . . . . . . . . . . . . . . . . . . . . . . . . . . . . . . . Disarmed 4 | . . . . . . . . . . . . . . . . . . . . . . . . . . . 4 . . . . . . Reprogrammed 6 | . . . . . . . . . 6 . . . . . . . . . . . . . . . . . . . . . . . . Reused 1 | . . . . . . . . . 1 . . . . . . . . . . . . . . . . . . . . . . . . Traps Extracted . | . . . . . . . . . . . . . . . . . . . . . . . . . . . . . . . . . . Installed 1 | . . . . . . . . . . . . . . . . . . 1 . . . . . . . . . . . . . . . Triggered 1 | . . . . . . . . . 1 . . . . . . . . . . . . . . . . . . . . . . . . Most Traps Carried 6 | . . . . . . . . . . . . 6 6 6 6 6 6 6 4 4 4 4 4 4 4 4 . . . . . . . Machines | -11 -10 -10 -9 -9 -8 -8 -8 -8 -6 -6 -6 -6 -6 -6 -5 -5 -5 -5 -5 -4 -4 -4 -4 -4 -3 -3 -3 -2 -2 -2 -1 -1 -1 ---------- Run | Yrd Mat Min Mat Min Mat Sto Rec Scr Fac Was Fac Low Low Zio Pro Fac Upp Upp Zhi Pro Fac Upp Upp War Pro Res Tes Res Qua Frg Acc Com Ac0 Machines Disabled 55 | . . . 8 1 2 2 . . 1 . . . . . . . . 1 . . . . . 1 . . 4 . 5 22 1 3 4 Max in Single Turn 2 | . . . 2 1 1 1 . . 1 . . . . . . . . 1 . . . . . 1 . . 1 . 1 2 1 1 1 Garrison Access 7 | . . . . . 1 . . . 1 . 1 . . . . . . . . . . . . . . . 1 1 . 1 1 . . Machines Repaired . | . . . . . . . . . . . . . . . . . . . . . . . . . . . . . . . . . . Machines Dismantled . | . . . . . . . . . . . . . . . . . . . . . . . . . . . . . . . . . . Machines Sabotaged . | . . . . . . . . . . . . . . . . . . . . . . . . . . . . . . . . . . Overloaded Fab Kills . | . . . . . . . . . . . . . . . . . . . . . . . . . . . . . . . . . . Hacking | -11 -10 -10 -9 -9 -8 -8 -8 -8 -6 -6 -6 -6 -6 -6 -5 -5 -5 -5 -5 -4 -4 -4 -4 -4 -3 -3 -3 -2 -2 -2 -1 -1 -1 --------- Run | Yrd Mat Min Mat Min Mat Sto Rec Scr Fac Was Fac Low Low Zio Pro Fac Upp Upp Zhi Pro Fac Upp Upp War Pro Res Tes Res Qua Frg Acc Com Ac0 Machines Accessed 172 | . 9 . 9 2 6 9 12 5 26 . 13 1 1 . . 11 3 2 4 . 11 1 . 5 . 11 9 5 4 2 8 3 . Terminals 94 | . 7 . 7 1 4 7 6 . 10 . 8 . . . . 5 1 1 . . 4 . . . . 6 8 4 4 1 7 3 . Fabricators 8 | . . . . . . . . . 5 . . . . . . . . . . . 2 . . . . 1 . . . . . . . Repair Stations 8 | . . . 1 . . . . . 2 . . . . . . 2 . . . . 2 . . . . 1 . . . . . . . Recycling Units 24 | . 2 . 1 . 1 1 6 . 6 . 2 . . . . 2 . . . . 1 . . . . 2 . . . . . . . Scanalyzers 7 | . . . . . . . . . 2 . 2 . . . . 1 . . . . 1 . . . . 1 . . . . . . . Garrison Access 10 | . . . . . 1 1 . . 1 . 1 . . . . 1 . . . . 1 . . . . . 1 1 . 1 1 . . Total Hacks 564 | . 27 . 28 4 13 24 34 33 104 . 46 1 1 . . 31 3 4 17 . 31 1 . 6 . 50 42 20 16 8 14 6 . Successful 359 | . 16 . 18 3 7 12 18 33 73 . 25 1 1 . . 16 3 4 17 . 18 1 . 6 . 31 26 10 3 5 8 4 . Failed 205 | . 11 . 10 1 6 12 16 . 31 . 21 . . . . 15 . . . . 13 . . . . 19 16 10 13 3 6 2 . Catastrophic 25 | . . . . . 1 2 1 . 3 . 3 . . . . 2 . . . . . . . . . 2 3 2 3 2 1 . . Database Lockouts . | . . . . . . . . . . . . . . . . . . . . . . . . . . . . . . . . . . Manual 224 | . 18 . 16 3 5 16 20 . 33 . 18 . . 1 . 10 . . . . 8 . . . . 26 20 8 12 . 7 3 . Terminals 351 | . 23 . 25 3 7 20 18 . 51 . 33 . . . . 20 1 3 . . 11 . . . . 39 41 18 16 5 11 6 . Fabricators 27 | . . . . . . . . . 20 . . . . . . . . . . . 4 . . . . 3 . . . . . . . Repair Stations 13 | . . . 1 . . . . . 3 . . . . . . 3 . . . . 5 . . . . 1 . . . . . . . Recycling Units 64 | . 4 . 2 . 5 3 16 . 18 . 4 . . . . 4 . . . . 3 . . . . 5 . . . . . . . Scanalyzers 26 | . . . . . . . . . 10 . 7 . . . . 2 . . . . 5 . . . . 2 . . . . . . . Garrison Access 20 | . . . . . 1 1 . . 2 . 2 . . . . 2 . . . . 3 . . . . . 1 2 . 3 3 . . Terminal Hacks 187 | . 5 . 8 2 3 5 4 33 21 . 10 1 1 . . 7 3 4 17 . 5 1 . 6 . 15 15 4 1 5 7 4 . Record 45 | . . . . . . . . 27 . . . . . . . . 1 3 5 . . . . 4 . . . . . 5 . . . Part Schematic 6 | . . . . . . . . . . . . . . . . . . . 4 . 1 . . . . 1 . . . . . . . Robot Analysis 18 | . . . 2 1 1 . . 6 1 . 1 . . . . . . . 4 . . . . . . . 2 . . . . . . Prototype ID Bank 23 | . 1 . 3 . 1 1 1 . 3 . 2 . . . . 1 . . 4 . . . . . . 2 1 1 1 . . 1 . Open Door 17 | . . . . 1 . 3 . . . . . 1 1 . . . 2 1 . . . 1 . 2 . . . 1 . . 3 1 . Branch Access Points 9 | . . . . . 1 . . . 2 . 1 . . . . 1 . . . . 1 . . . . 1 . 1 . . 1 . . Emergency Access Points 4 | . . . . . . . 1 . 1 . . . . . . . . . . . . . . . . 2 . . . . . . . Machine Index 2 | . . . . . . . . . 1 . . . . . . . . . . . . . . . . . 1 . . . . . . Terminal Index 2 | . . . . . . . . . . . . . . . . . . . . . . . . . . 1 1 . . . . . . Recycling Unit Index 2 | . . . . . . . . . . . . . . . . . . . . . 1 . . . . . 1 . . . . . . Scanalyzer Index 2 | . . . . . . . . . . . . . . . . 1 . . . . . . . . . 1 . . . . . . . Alert Level 1 | . . . . . . . . . . . . . . . . . . . . . . . . . . . . . . . 1 . . Unreport Threat 14 | . . . . . . . . . 3 . 2 . . . . . . . . . . . . . . 2 4 . . . 2 1 . Locate Traps 15 | . 2 . 1 . . . . . 5 . 1 . . . . 1 . . . . . . . . . 1 2 1 . . . 1 . Disarm Traps 1 | . . . . . . . . . . . . . . . . . . . . . . . . . . . 1 . . . . . . Reprogram Traps 1 | . . . . . . . . . 1 . . . . . . . . . . . . . . . . . . . . . . . . Recall Investigation 2 | . . . . . . . . . . . . . . . . . . . . . . . . . . 2 . . . . . . . Hauler Manifests 8 | . . . 1 . . . 1 . 1 . 1 . . . . 1 . . . . 1 . . . . 1 1 . . . . . . Registered Components 6 | . . . . . . 1 . . 1 . . . . . . 1 . . . . 1 . . . . 1 1 . . . . . . Registered Prototypes 2 | . . . . . . . . . 1 . 1 . . . . . . . . . . . . . . . . . . . . . . Zone Layout 7 | . 2 . 1 . . . 1 . 1 . 1 . . . . 1 . . . . . . . . . . . . . . . . . Fabricator Hacks 15 | . . . . . . . . . 12 . . . . . . . . . . . 1 . . . . 2 . . . . . . . Network Status 1 | . . . . . . . . . . . . . . . . . . . . . 1 . . . . . . . . . . . . Load Schematic 9 | . . . . . . . . . 8 . . . . . . . . . . . . . . . . 1 . . . . . . . Build 5 | . . . . . . . . . 4 . . . . . . . . . . . . . . . . 1 . . . . . . . Repair Station Hacks 5 | . . . . . . . . . 2 . . . . . . 1 . . . . 2 . . . . . . . . . . . . Scan Component 2 | . . . . . . . . . 1 . . . . . . . . . . . 1 . . . . . . . . . . . . Repair 2 | . . . . . . . . . 1 . . . . . . . . . . . 1 . . . . . . . . . . . . Refit 1 | . . . . . . . . . . . . . . . . 1 . . . . . . . . . . . . . . . . . Recycling Unit Hacks 18 | . 1 . . . 1 1 3 . 6 . 1 . . . . 2 . . . . 1 . . . . 2 . . . . . . . Retrieve Components 18 | . 1 . . . 1 1 3 . 6 . 1 . . . . 2 . . . . 1 . . . . 2 . . . . . . . Scanalyzer 22 | . . . . . . . . . 10 . 4 . . . . 2 . . . . 5 . . . . 1 . . . . . . . Insert Component 12 | . . . . . . . . . 4 . 3 . . . . 1 . . . . 3 . . . . 1 . . . . . . . Analyze 10 | . . . . . . . . . 6 . 1 . . . . 1 . . . . 2 . . . . . . . . . . . . Garrison Access Hacks 5 | . . . . . 1 . . . 1 . 1 . . . . . . . . . . . . . . . 1 1 . . . . . Seal Access 5 | . . . . . 1 . . . 1 . 1 . . . . . . . . . . . . . . . 1 1 . . . . . Unauthorized Hacks 107 | . 10 . 10 1 2 6 11 . 21 . 9 . . . . 4 . . . . 4 . . . . 11 10 5 2 . 1 . . Terminals 73 | . 8 . 8 1 1 5 5 . 11 . 7 . . . . 3 . . . . . . . . . 7 10 5 2 . . . . Track 1 | . . . . . . . . . 1 . . . . . . . . . . . . . . . . . . . . . . . . Assimilate 4 | . . . . . . . . . . . 1 . . . . . . . . . . . . . . . 2 . 1 . . . . Botnet 16 | . 2 . 2 . . 2 . . 2 . 1 . . . . 1 . . . . . . . . . 2 2 2 . . . . . Operators 4 | . 1 . . . . . . . 1 . . . . . . 1 . . . . . . . . . 1 . . . . . . . Skim 48 | . 5 . 6 1 1 3 5 . 7 . 5 . . . . 1 . . . . . . . . . 4 6 3 1 . . . . Fabricators 7 | . . . . . . . . . 5 . . . . . . . . . . . 1 . . . . 1 . . . . . . . Prioritize 2 | . . . . . . . . . 1 . . . . . . . . . . . . . . . . 1 . . . . . . . Haulers 1 | . . . . . . . . . . . . . . . . . . . . . 1 . . . . . . . . . . . . Recompile 4 | . . . . . . . . . 4 . . . . . . . . . . . . . . . . . . . . . . . . Repair Stations 4 | . . . 1 . . . . . 1 . . . . . . . . . . . 1 . . . . 1 . . . . . . . Patch 4 | . . . 1 . . . . . 1 . . . . . . . . . . . 1 . . . . 1 . . . . . . . Recycling Units 22 | . 2 . 1 . 1 1 6 . 4 . 2 . . . . 1 . . . . 2 . . . . 2 . . . . . . . Reject 1 | . . . . . . . . . . . . . . . . . . . . . 1 . . . . . . . . . . . . Mask 3 | . . . . . . . . . . . . . . . . 1 . . . . 1 . . . . 1 . . . . . . . Tunnel 12 | . 2 . 1 . 1 1 6 . 1 . . . . . . . . . . . . . . . . . . . . . . . . Fedlink 6 | . . . . . . . . . 3 . 2 . . . . . . . . . . . . . . 1 . . . . . . . Scanalyzers . | . . . . . . . . . . . . . . . . . . . . . . . . . . . . . . . . . . Garrison Access 1 | . . . . . . . . . . . . . . . . . . . . . . . . . . . . . . . 1 . . Jam 1 | . . . . . . . . . . . . . . . . . . . . . . . . . . . . . . . 1 . . Data Cores Recovered 4 | . 1 . . . . . . . 1 . . . . . . 1 . . . . . . . . . . . . 1 . . . . Used 1 | . . . . . . . . . . . . . . . . 1 . . . . . . . . . . . . . . . . . Hacking Detections 109 | . 7 . 8 1 4 5 8 . 18 . 8 . . . . 9 . 1 . . 9 . . . . 8 6 3 4 2 6 2 . Full Trace Events 7 | . . . . . . . . . . . 1 . . . . 1 . 1 . . 1 . . . . 1 . . . 1 1 . . Feedback Events 1 | . . . . . . . . . . . . . . . . . . . . . 1 . . . . . . . . . . . . Hackware Fried 1 | . . . . . . . . . . . . . . . . . . . . . 1 . . . . . . . . . . . . Feedback Blocked . | . . . . . . . . . . . . . . . . . . . . . . . . . . . . . . . . . . Robot Schematics Acquired 1 | . . . . . . . . . . . . . . . . . . . . . . . . . . . 1 . . . . . . Robots Built . | . . . . . . . . . . . . . . . . . . . . . . . . . . . . . . . . . . Authchips . | . . . . . . . . . . . . . . . . . . . . . . . . . . . . . . . . . . Time . | . . . . . . . . . . . . . . . . . . . . . . . . . . . . . . . . . . Total Robot Build Rating . | . . . . . . . . . . . . . . . . . . . . . . . . . . . . . . . . . . Part Schematics Acquired 18 | . . . . . . . . . 3 . 1 . . . . 1 . . 4 . 3 . . . . 1 3 . . 2 . . . Parts Built 5 | . . . . . . . . . 4 . . . . . . . . . . . . . . . . 1 . . . . . . . Authchips 4 | . . . . . . . . . 4 . . . . . . . . . . . . . . . . . . . . . . . . Time 193 | . . . . . . . . . 100 . . . . . . . . . . . . . . . . 93 . . . . . . . Total Part Build Rating 27 | . . . . . . . . . 20 . . . . . . . . . . . . . . . . 7 . . . . . . . Parts Repaired 2 | . . . . . . . . . 1 . . . . . . . . . . . 1 . . . . . . . . . . . . Time 66 | . . . . . . . . . 41 . . . . . . . . . . . 25 . . . . . . . . . . . . Parts Recycled . | . . . . . . . . . . . . . . . . . . . . . . . . . . . . . . . . . . Recycled Matter . | . . . . . . . . . . . . . . . . . . . . . . . . . . . . . . . . . . Retrieved Matter . | . . . . . . . . . . . . . . . . . . . . . . . . . . . . . . . . . . Retrieved Components 57 | . 1 . . . 2 1 11 . 24 . 2 . . . . 3 . . . . 3 . . . . 10 . . . . . . . Parts Scanalyzed 8 | . . . . . . . . . 3 . 2 . . . . 1 . . . . 2 . . . . . . . . . . . . Part Schematics Acquired 7 | . . . . . . . . . 3 . 1 . . . . 1 . . . . 2 . . . . . . . . . . . . Parts Damaged 2 | . . . . . . . . . 1 . . . . . . . . . . . 1 . . . . . . . . . . . . Bothacking | -11 -10 -10 -9 -9 -8 -8 -8 -8 -6 -6 -6 -6 -6 -6 -5 -5 -5 -5 -5 -4 -4 -4 -4 -4 -3 -3 -3 -2 -2 -2 -1 -1 -1 ------------ Run | Yrd Mat Min Mat Min Mat Sto Rec Scr Fac Was Fac Low Low Zio Pro Fac Upp Upp Zhi Pro Fac Upp Upp War Pro Res Tes Res Qua Frg Acc Com Ac0 Used RIF Installer . | . . . . . . . . . . . . . . . . . . . . . . . . . . . . . . . . . . Robots Hacked 1 | . . . . . . . . . 1 . . . . . . . . . . . . . . . . . . . . . . . . Non-combat 1 | . . . . . . . . . 1 . . . . . . . . . . . . . . . . . . . . . . . . Combat . | . . . . . . . . . . . . . . . . . . . . . . . . . . . . . . . . . . Robot Hacks Applied 1 | . . . . . . . . . 1 . . . . . . . . . . . . . . . . . . . . . . . . find_chute 1 | . . . . . . . . . 1 . . . . . . . . . . . . . . . . . . . . . . . . Relay Couplers Released 2 | . . . . . . . . . . . . . . . . . . . . . . . . . . . . . . 2 . . . Machine Destruction 2 | . . . . . . . . . . . . . . . . . . . . . . . . . . . . . . 2 . . . Fabnet Peak Effective % . | . . . . . . . . . . . . . . . . . . . . . . . . . . . . . . . . . . Robots Rewired 5 | . . . . . . . . . . . . . . . . . . . . . . . . 5 . . . . . . . . . Allies Hacked . | . . . . . . . . . . . . . . . . . . . . . . . . . . . . . . . . . . Hacks Repelled . | . . . . . . . . . . . . . . . . . . . . . . . . . . . . . . . . . . Allies | -11 -10 -10 -9 -9 -8 -8 -8 -8 -6 -6 -6 -6 -6 -6 -5 -5 -5 -5 -5 -4 -4 -4 -4 -4 -3 -3 -3 -2 -2 -2 -1 -1 -1 -------- Run | Yrd Mat Min Mat Min Mat Sto Rec Scr Fac Was Fac Low Low Zio Pro Fac Upp Upp Zhi Pro Fac Upp Upp War Pro Res Tes Res Qua Frg Acc Com Ac0 Total Allies 21 | . . . . . . 10 . . . 1 1 . . 2 . . . . . . . . . 5 . . 2 . . . . . . Largest Group 10 | . . . . . . 10 10 10 . 1 1 . . 2 2 . . . . . . . . 5 . . 2 . . . . . . Highest-Rated Group 301 | . . . . . . 173 173 173 . 31 26 . . 192 192 . . . . . . . . 301 . . 19 . . . . . . Highest-Rated Ally 96 | . . . . . . 29 29 29 . 31 26 . . 96 96 . . . . . . . . 68 . . 10 . . . . . . Total Orders 15 | . . . . . . . . 1 . . . . . . . . . . . . . . . 7 . . . . . 1 2 4 . STAY 8 | . . . . . . . . 1 . . . . . . . . . . . . . . . 6 . . . . . . . 1 . FOLLOW 2 | . . . . . . . . . . . . . . . . . . . . . . . . 1 . . . . . . . 1 . RETURN 5 | . . . . . . . . . . . . . . . . . . . . . . . . . . . . . . 1 2 2 . Ally Attacks 136 | . . . . . . . 23 21 . . . . . . 9 . . . . . . . . 42 . . . . . 6 4 31 . Total Damage 6134 | . . . . . . . 230 202 . . . . . . 415 . . . . . . . . 2451 . . . . . 386 194 2256 . Kills 21 | . . . . . . . 3 1 . . . . . . 1 . . . . . . . . 14 . . . . . . 1 1 . Allies Corrupted 1 | . . . . . . . . . . . . . . . . . . . . . . . . . . . . . . . . 1 . Allies Melted 1 | . . . . . . . . . . . . . . . . . . . . . . . . 1 . . . . . . . . . Intel | -11 -10 -10 -9 -9 -8 -8 -8 -8 -6 -6 -6 -6 -6 -6 -5 -5 -5 -5 -5 -4 -4 -4 -4 -4 -3 -3 -3 -2 -2 -2 -1 -1 -1 ------- Run | Yrd Mat Min Mat Min Mat Sto Rec Scr Fac Was Fac Low Low Zio Pro Fac Upp Upp Zhi Pro Fac Upp Upp War Pro Res Tes Res Qua Frg Acc Com Ac0 Active Infowar (turns) 17011 | 54 1015 826 1173 541 1013 390 . 206 992 18 1103 355 333 346 263 446 349 195 69 161 310 189 338 642 99 453 379 120 216 1821 489 1910 197 Optics 5433 | . . . . . . . . . . . . . . . . . . . . . . . . . . 301 379 120 216 1821 489 1910 197 Sensors 7182 | . . . . . . . . . 646 18 1030 355 333 346 263 446 349 195 69 161 310 189 338 642 99 442 346 120 216 269 . . . A.S.S. 451 | . . . . . . . . . . . . . . . . . . . . . . . . . . . . . . . 421 30 . Terrain 359 | . . . . . . . . . . . . . . . . . . . . . . . . . . . . . . . . 316 43 Structural 4667 | . . . 1026 532 . . . . 96 . 38 67 297 32 35 39 . 46 . . . 95 338 642 99 450 379 120 216 120 . . . Seismic 3454 | 54 1015 826 147 9 1013 390 . . . . . . . . . . . . . . . . . . . . . . . . . . . T.N.C. 317 | . . . . . . . . . 317 . . . . . . . . . . . . . . . . . . . . . . . . Machine Analysis 529 | . . . . . . . . 206 323 . . . . . . . . . . . . . . . . . . . . . . . . Jamming 1226 | . . . . . . . . . . . . . . . . . . . . . . . . . . 227 33 106 216 644 . . . ECM 1283 | . . . . . . . . . 298 . 278 73 36 . . 147 . . . . . . . . . . . . . . 69 382 . Robot Analysis Total 18 | . . . 2 1 1 . . 6 1 . 1 . . . . . . . 4 . . . . . . . 2 . . . . . . Derelict Logs Recovered 14 | . . 1 . 2 . . . . . . . . 1 1 2 . 2 1 . 2 . 1 1 . . . . . . . . . . Drone Launches 11 | . . . . . . . . . . . . . . . . . . . . . . . . . . . . . . 3 3 5 . Drone Recoveries 7 | . . . . . . . . . . . . . . . . . . . . . . . . . . . . . . 3 3 1 . Exploration | -11 -10 -10 -9 -9 -8 -8 -8 -8 -6 -6 -6 -6 -6 -6 -5 -5 -5 -5 -5 -4 -4 -4 -4 -4 -3 -3 -3 -2 -2 -2 -1 -1 -1 ------------- Run | Yrd Mat Min Mat Min Mat Sto Rec Scr Fac Was Fac Low Low Zio Pro Fac Upp Upp Zhi Pro Fac Upp Upp War Pro Res Tes Res Qua Frg Acc Com Ac0 Turns Passed 22480 | 139 1015 826 1838 1609 1013 1074 1293 1772 1028 18 1103 355 333 346 263 454 413 195 69 161 310 189 338 642 99 453 379 120 216 1821 489 1910 197 Spaces Moved 30926 | 66 522 453 929 608 673 672 670 1569 2360 68 2085 853 894 801 664 1358 1031 604 159 586 962 775 649 1321 405 1526 939 529 873 2621 761 1665 275 Core 3 | 3 . . . . . . . . . . . . . . . . . . . . . . . . . . . . . . . . . Treads 2598 | 63 522 453 929 608 23 . . . . . . . . . . . . . . . . . . . . . . . . . . . . Legs 2827 | . . . . . 650 672 670 835 . . . . . . . . . . . . . . . . . . . . . . . . . Wheels . | . . . . . . . . . . . . . . . . . . . . . . . . . . . . . . . . . . Hover 4238 | . . . . . . . . . . . . . . . . . . . . . . . . . . . . . . 1537 761 1665 275 Flight 21260 | . . . . . . . . 734 2360 68 2085 853 894 801 664 1358 1031 604 159 586 962 775 649 1321 405 1526 939 529 873 1084 . . . Fastest Speed 12 | 50 160 160 160 160 125 122 122 31 24 24 24 24 24 24 24 21 21 12 21 21 21 23 23 20 20 20 20 17 17 14 33 33 42 Average Speed 47 | 155 160 160 160 173 126 124 122 108 27 24 24 24 24 24 24 21 22 24 21 21 22 23 23 20 20 20 20 18 17 27 33 39 43 Slowest Speed 241 | 160 160 160 160 240 160 125 122 241 28 24 24 24 24 24 24 24 102 96 21 21 105 23 23 23 20 21 21 20 17 94 33 88 47 Overloaded Moves 12 | . . . . . . . . . . . . . . . . . . 4 . . . . . . . . . . . 8 . . . Propulsion Burnouts . | . . . . . . . . . . . . . . . . . . . . . . . . . . . . . . . . . . Robots Hopped 58 | . . . . . . . . . 10 . 6 . . . . 10 . . . 1 4 . . 3 . 5 10 3 4 2 . . . Potential Cave-ins . | . . . . . . . . . . . . . . . . . . . . . . . . . . . . . . . . . . Cave-ins Triggered . | . . . . . . . . . . . . . . . . . . . . . . . . . . . . . . . . . . Teleports 25 | . . . . . . . . . . . . . . . . . . . . . . . . . . . . . . 7 16 1 1 Exploration Rate (%) 67 | 6 95 94 78 100 49 94 99 88 67 80 49 85 93 83 67 36 89 77 60 81 28 94 84 94 67 38 90 17 73 43 30 52 23 Regions Visited 33 Branch Regions 22 Pre-discovered Areas 30 | . 2 1 2 . 1 2 7 6 2 . 1 . . 2 . . 1 . 3 . . . . . . . . . . . . . . Known Exits Taken 25 | . . 1 . 1 1 . . 1 . . 1 1 1 1 1 1 1 1 1 1 1 1 1 1 1 1 1 1 1 1 1 . . Unknown Exits Taken 6 | 1 1 . 1 . . 1 1 . . . . . . . . . . . . . . . . . . . . . . . . 1 . Scrap Searched 36 | . . 1 . 2 . . . 3 . . . 9 4 2 4 . 1 1 . 4 . 3 2 . . . . . . . . . . Spaces Dug 221 | . 1 . . 19 2 . . . 33 . 37 13 10 . . 15 6 2 . 5 16 2 . . 3 19 4 3 3 4 10 9 5 Terrain Destroyed 497 | . 5 3 107 133 6 . . . 33 . 37 13 10 . . 22 7 2 . 5 16 2 . . 3 19 4 3 3 4 15 16 29 Melee 188 | . . . . . . . . . 33 . 37 13 10 . . 15 5 2 . 5 16 2 . . 3 19 4 3 3 4 4 8 2 Projectile 28 | . 5 3 1 3 6 . . . . . . . . . . 7 2 . . . . . . . . . . . . . . . 1 AOE 281 | . . . 106 130 . . . . . . . . . . . . . . . . . . . . . . . . . . 11 8 26 Terrain Rammed . | . . . . . . . . . . . . . . . . . . . . . . . . . . . . . . . . . . Walls Destroyed . | . . . . . . . . . . . . . . . . . . . . . . . . . . . . . . . . . . Machines Disabled . | . . . . . . . . . . . . . . . . . . . . . . . . . . . . . . . . . . Actions | -11 -10 -10 -9 -9 -8 -8 -8 -8 -6 -6 -6 -6 -6 -6 -5 -5 -5 -5 -5 -4 -4 -4 -4 -4 -3 -3 -3 -2 -2 -2 -1 -1 -1 --------- Run | Yrd Mat Min Mat Min Mat Sto Rec Scr Fac Was Fac Low Low Zio Pro Fac Upp Upp Zhi Pro Fac Upp Upp War Pro Res Tes Res Qua Frg Acc Com Ac0 Total 37405 | 82 622 500 1139 1115 772 815 1124 1641 2636 68 2542 969 964 949 765 1456 1172 640 182 600 1028 782 836 1677 419 1611 1091 541 918 3550 991 2877 331 Wait 4548 | . 39 18 55 450 15 37 432 3 149 . 361 93 41 139 85 46 109 21 . . 36 . 188 317 11 16 119 1 18 471 200 1078 . Move 30781 | 65 521 452 928 607 672 671 669 1568 2340 67 2073 852 893 800 663 1339 1030 603 158 583 953 774 648 1315 404 1516 918 522 864 2615 760 1664 274 Hop 53 | . . . . . . . . . 10 . 5 . . . . 8 . . . 1 4 . . 2 . 4 10 3 4 2 . . . Pick Up 213 | 2 7 . 25 7 13 7 . 37 17 1 8 1 . 1 3 6 2 . 1 . 3 1 . 5 . 6 3 1 3 44 . 8 1 Fast Attach 99 | 6 3 . 4 3 3 7 . 5 9 . 1 . 1 1 2 2 1 1 6 1 3 . . 1 . 6 2 4 1 13 . 10 3 Attach 95 | . . . 2 1 5 . . 5 10 . . . 1 . 1 4 1 1 1 . 1 1 . 1 . 4 1 1 . 26 7 17 4 Detach 67 | . 1 . 1 . . . . 2 7 . 1 . 1 . 1 1 . 1 1 1 . . . 2 . 2 1 . . 23 4 15 2 Swap 210 | . 5 1 16 8 6 7 . 2 19 . 17 7 2 6 3 10 5 8 2 . 3 2 . 6 . 8 13 1 1 41 2 5 4 Drop 216 | . 5 . 22 9 18 15 . 19 21 . 9 1 2 1 6 7 2 . 6 . 3 1 . 5 . 10 4 4 5 36 . 5 . Fire 403 | 9 39 26 76 26 35 69 17 . 4 . . . . . . 7 5 1 . . . . . 1 . . 1 . . 81 . 3 3 Melee 576 | . . . . . . . . . 50 . 67 15 23 1 1 26 17 3 7 14 22 3 . 4 4 39 19 4 22 111 18 66 40 Ram . | . . . . . . . . . . . . . . . . . . . . . . . . . . . . . . . . . . Kick 9 | . . . . . 5 2 2 . . . . . . . . . . . . . . . . . . . . . . . . . . Crush 19 | . 2 3 10 4 . . . . . . . . . . . . . . . . . . . . . . . . . . . . . Escape Stasis 91 | . . . . . . . . . . . . . . . . . . . . . . . . . . . . . . 87 . 4 . Rewire 24 | . . . . . . . 4 . . . . . . . . . . . . . . . . 18 . . . . . . . 2 . Trap 1 | . . . . . . . . . . . . . . . . . . 1 . . . . . . . . . . . . . . . Miscellaneous . | . . . . . . . . . . . . . . . . . . . . . . . . . . . . . . . . . . Route ------- -11/Scrapyard -10/Materials (discovered 5 exits: *Mat x3 / [*Min] / Sub) -10/Mines (discovered 3 exits: *Mat x2 / [*Exi]) -9/Materials (discovered 5 exits: *Mat x3 / *Min x2) -9/Mines (discovered 2 exits: *Mat x2) -8/Materials (discovered 3 exits: [*Fac x2] / *Sto) -8/Storage (discovered 2 exits: [*Fac] / *Rec) -8/Recycling (discovered 2 exits: *Fac / *Scr) -8/Scraptown (discovered 2 exits: *Fac x2) -6/Factory (discovered 6 exits: *Fac x4 / *Low x2) -6/Waste -6/Factory (discovered 4 exits: *Fac x2 / *Low x2) -6/Lower Caves -6/Lower Caves (discovered 2 exits: *Fac / *Zio) -6/Zion -5/Proximity Caves -5/Factory (discovered 5 exits: *Fac / *Upp x2 / *Ext x2) -5/Upper Caves -5/Upper Caves (discovered 2 exits: *Fac / *Zhi) -5/Zhirov -4/Proximity Caves -4/Factory (discovered 5 exits: *Res x3 / *Upp x2) -4/Upper Caves -4/Upper Caves (discovered 2 exits: *Res / *War) -4/Warlord -3/Proximity Caves -3/Research (discovered 4 exits: *Res / Arm / *Tes x2) -3/Testing -2/Research (discovered 5 exits: Acc x3 / *Qua x2) -2/Quarantine (discovered 3 exits: *Acc / [*Sec] / *Frg) -2/Protoforge -1/Access -1/Command (discovered 3 exits: [*Sur x2] / [*Ac0]) -1/Access_0 0b11 Command History --------- Turn | Location | Event 23 | -11/Scrapyard | Discovered new exit (range 16) 140 | -11/Scrapyard | Entered Materials 309 | -10/Materials | Build established: Mutant 501 | -10/Materials | Discovered new exit (range 15) 714 | -10/Materials | Discovered new exit (range 16) 797 | -10/Materials | Learned location of 1 exit from Recycling 876 | -10/Materials | Discovered new exit (range 10) 930 | -10/Materials | Loaded intel: 8 terminal locations 980 | -10/Materials | Learned Storage security intel 996 | -10/Materials | Discovered new exit (range 15) 1021 | -10/Materials | Learned 2 Mines zone layouts 1072 | -10/Materials | Learned 2 Mines zone layouts 1131 | -10/Materials | Identified exit to Subcaves 1155 | -10/Materials | Entered Mines 1156 | -10/Mines | Identified exit to Materials 1204 | -10/Mines | Met a Derelict bent on vengeance 1274 | -10/Mines | Learned Materials emergency access door positions 1307 | -10/Mines | Deemed a non-threat by the Exiles lab entrance 1307 | -10/Mines | Discovered new exit (range 5) 1478 | -10/Mines | Discovered exit to Materials (range 16) 1969 | -10/Mines | Learned location of Storage (-8) 1981 | -10/Mines | Entered Materials 1981 | -9/Materials | Evolved 2 slots: Propulsion x1, Utility x1 2109 | -9/Materials | Discovered new exit (range 10) 2243 | -9/Materials | Discovered new exit (range 15) 3241 | -9/Materials | Discovered new exit (range 6) 3536 | -9/Materials | Discovered new exit (range 14) 3660 | -9/Materials | Learned Storage stockpile data 3804 | -9/Materials | Identified exit to Materials 3819 | -9/Materials | Entered Mines 3875 | -9/Mines | Learned Materials garrison access intel 3884 | -9/Mines | Met a Derelict who couldn't figure out how to use a Trap Extractor 4149 | -9/Mines | Discovered exit to Materials (range 10) 4526 | -9/Mines | Assembled infested the area 5239 | -9/Mines | A weapon hastily lodged in a ceiling crevice suddenly fell to the ground 5396 | -9/Mines | Discovered exit to Materials (range 8) 5428 | -9/Mines | Entered Materials 5428 | -8/Materials | Evolved 2 slots: Propulsion x1, Utility x1 5429 | -8/Materials | Loaded intel: 1 garrison access location 5753 | -8/Materials | Met 7R-MNS 5763 | -8/Materials | Discovered new exit (range 16) 5812 | -8/Materials | Discovered new exit (range 8) 6042 | -8/Materials | Identified exit to Storage 6044 | -8/Materials | Discovered new exit (range 16) 6441 | -8/Materials | Entered Storage 6494 | -8/Storage | Garrison activated, responded to threat 6625 | -8/Storage | Used back door to open Recycling access 6625 | -8/Storage | Discovered new exit (range 5) 7165 | -8/Storage | Build established: Scavenger-Mutant 7257 | -8/Storage | Discovered new exit (range 9) 7371 | -8/Storage | Assisted by bots powering up and referring to "LRC-V3" 7515 | -8/Storage | Entered Recycling 7515 | -8/Recycling | Accompanied by 10 allies 7516 | -8/Recycling | Identified exit to Factory 7658 | -8/Recycling | Build established: Commander-Mutant 7963 | -8/Recycling | Scanned before Scraplab entrance 8202 | -8/Recycling | Learned Factory trap positions 8282 | -8/Recycling | Loaded intel: 6 recycling unit locations 8352 | -8/Recycling | Learned Storage security intel 8505 | -8/Recycling | Learned Storage security intel 8539 | -8/Recycling | Learned location of 1 exit from Recycling 8585 | -8/Recycling | Learned location of 3 exits from Factory 8707 | -8/Recycling | Learned location of Lower Caves (-6) 8761 | -8/Recycling | Entered Scraplab 8772 | -8/Recycling | Discovered new exit (range 3) 8808 | -8/Recycling | Entered Scraptown 8808 | -8/Scraptown | Accompanied by 10 allies 8950 | -8/Scraptown | Visited UFD Registry 8952 | -8/Scraptown | Registered with UFD as "Pulsedriver" 8961 | -8/Scraptown | Visited Comm Corps 8977 | -8/Scraptown | Visited Shadow of the Wyrm 8994 | -8/Scraptown | Visited Fellowship of the Rings 9020 | -8/Scraptown | Visited SPCMW 9037 | -8/Scraptown | Visited Cyclists 9046 | -8/Scraptown | Entered Cyclist Reading Room 9051 | -8/Scraptown | Learned location of Zion (-6) 9189 | -8/Scraptown | Heard Great Nut preacher, LISTEN AND RECITE! 9526 | -8/Scraptown | Visited IN-MT5's Study 9545 | -8/Scraptown | Visited CR-KLE's Repair Center 9641 | -8/Scraptown | Visited Abandonware Association 9655 | -8/Scraptown | Learned abandonware demo "REVENGE.EXE" 9682 | -8/Scraptown | Visited Infowarlord's Domain 9703 | -8/Scraptown | Visited Analyses Database 9821 | -8/Scraptown | Visited Derelict Rescue Squad 9837 | -8/Scraptown | Found DRS Beacon 9867 | -8/Scraptown | Visited Scrap Suit Storage 9891 | -8/Scraptown | Visited Observation Area 9907 | -8/Scraptown | Visited Cartography Club 10016 | -8/Scraptown | Learned location of Upper Caves (-4) 10016 | -8/Scraptown | Learned 8 Materials zone layouts 10016 | -8/Scraptown | Learned 12 Factory zone layouts 10016 | -8/Scraptown | Learned 20 Factory zone layouts 10016 | -8/Scraptown | Learned 4 Access zone layouts 10016 | -8/Scraptown | Learned 8 Upper Caves zone layouts 10016 | -8/Scraptown | Learned Research emergency access door positions 10016 | -8/Scraptown | Learned location of 2 exits from Factory 10016 | -8/Scraptown | Learned location of 1 exit from Lower Caves 10027 | -8/Scraptown | Found Deep Structural Scanner 10104 | -8/Scraptown | Visited A0-MCA Data Center 10129 | -8/Scraptown | Given an A rating by A0-MCA 10138 | -8/Scraptown | Found A0-MCA's Component Scanner 10145 | -8/Scraptown | Visited LU-1G1's Boring Crew 10156 | -8/Scraptown | Visited Junk Repository 10458 | -8/Scraptown | Found Exp. Signal Interpreter 10519 | -8/Scraptown | Met Optimus 10519 | -8/Scraptown | Accepted into 0bPrime 10574 | -8/Scraptown | Civil war broke out across Scraptown 10580 | -8/Scraptown | Entered Factory 10580 | -6/Factory | Evolved 4 slots: Propulsion x1, Utility x3 10581 | -6/Factory | Identified exit to Lower Caves 10582 | -6/Factory | Identified exit to Factory 10584 | -6/Factory | Loaded intel: 120 trap records 10603 | -6/Factory | Loaded intel: 8 recycling unit locations 10884 | -6/Factory | Build established: Hacker-Sprinter 10888 | -6/Factory | Learned location of 1 exit from Lower Caves 10922 | -6/Factory | Learned Extension terminal intel 10954 | -6/Factory | Learned location of Protoforge (-2) 10965 | -6/Factory | Learned 2 Upper Caves zone layouts 10972 | -6/Factory | Learned Hub_04(d) stockpile data 10973 | -6/Factory | Learned location of 1 exit from Hub_04(d) 10975 | -6/Factory | Learned Hub_04(d) security intel 10988 | -6/Factory | Learned 4 Factory zone layouts 11093 | -6/Factory | Repaired Broken Exp. Signal Interpreter 11352 | -6/Factory | Fabricated Cld. Cesium-ion Thruster (x1) 11454 | -6/Factory | Fabricated Cld. Cesium-ion Thruster (x1) 11482 | -6/Factory | Fabricated Cld. Cesium-ion Thruster (x1) 11510 | -6/Factory | Fabricated Cld. Cesium-ion Thruster (x1) 11608 | -6/Factory | Manually triggered Chute Trap 11608 | -6/Factory | Sucked down chute 11608 | -6/Factory | Entered Waste 11609 | -6/Waste | Met a frightened Derelict 11615 | -6/Waste | Spotted C-40 Crusher 11616 | -6/Waste | Spotted C-40 Crusher 11620 | -6/Waste | Spotted C-40 Crusher 11622 | -6/Waste | Spotted C-40 Crusher 11622 | -6/Waste | Discovered new exit (range 16) 11622 | -6/Waste | Spotted C-40 Crusher 11623 | -6/Waste | EMP discharged 11623 | -6/Waste | System corruption reached 10% 11625 | -6/Waste | Identified exit to Factory 11626 | -6/Waste | Entered Factory 11835 | -6/Factory | Loaded intel: 8 recycling unit locations 11904 | -6/Factory | Spotted B-75 Beast 12386 | -6/Factory | Learned location of Warlord (-4) 12463 | -6/Factory | Learned Extension terminal intel 12508 | -6/Factory | Discovered exit to Factory (range 5) 12528 | -6/Factory | Loaded intel: 109 trap records 12585 | -6/Factory | Learned location of 1 exit from Lower Caves 12633 | -6/Factory | Learned Extension stockpile data 12673 | -6/Factory | Learned 2 Lower Caves zone layouts 12729 | -6/Factory | Entered Lower Caves 12730 | -6/Lower Caves | Identified exit to Lower Caves 12834 | -6/Lower Caves | Encountered a Warlord checkpoint 13084 | -6/Lower Caves | Entered another Lower Caves area 13085 | -6/Lower Caves | Identified exit to Zion 13389 | -6/Lower Caves | Learned Factory security intel 13393 | -6/Lower Caves | Spotted B-75 Beast 13417 | -6/Lower Caves | Entered Zion 13431 | -6/Zion | Found CR-A16's Pointy Stick 13442 | -6/Zion | Discovered new exit (range 16) 13448 | -6/Zion | Found Prototype Device 13448 | -6/Zion | Identified Phasing AFG 13462 | -6/Zion | System corruption cleaned by Quarantine Array 13474 | -6/Zion | Build established: Hacker-Scout 13524 | -6/Zion | Given A8's code to call for help 13560 | -6/Zion | Learned 4 Factory zone layouts 13577 | -6/Zion | Received a hallucinogenic algorithm 13605 | -6/Zion | Enhanced Grunt warped into view, answering call for help 13607 | -6/Zion | Enhanced Grunt warped into view, answering call for help 13646 | -6/Zion | Identified exit to Proximity Caves 13763 | -6/Zion | Entered Proximity Caves 13763 | -5/Proximity Caves | Accompanied by 2 allies 13781 | -5/Proximity Caves | Learned Factory terminal intel 13783 | -5/Proximity Caves | Build established: Hacker-Sprinter 13784 | -5/Proximity Caves | Learned Factory garrison access intel 13965 | -5/Proximity Caves | Found Prototype Device 13968 | -5/Proximity Caves | Identified Exp. Thermal Shield 13993 | -5/Proximity Caves | Discovered exit to Factory (range 6) 14026 | -5/Proximity Caves | Entered Factory 14026 | -5/Factory | Evolved 2 slots: Power x1, Propulsion x1 14027 | -5/Factory | Identified exit to Extension 14028 | -5/Factory | Identified exit to Upper Caves 14030 | -5/Factory | Loaded intel: 27 terminal locations 14031 | -5/Factory | Loaded intel: 4 garrison access locations 14121 | -5/Factory | Discovered new exit (range 8) 14480 | -5/Factory | Entered Upper Caves 14521 | -5/Upper Caves | Learned Factory terminal intel 14661 | -5/Upper Caves | Discovered new exit (range 10) 14662 | -5/Upper Caves | Identified exit to Upper Caves 14690 | -5/Upper Caves | Spotted B-75 Beast 14718 | -5/Upper Caves | Revealed the true nature of CR-A16's Pointy Stick 14721 | -5/Upper Caves | Destroyed B-75 Beast 14893 | -5/Upper Caves | Entered another Upper Caves area 14896 | -5/Upper Caves | Discovered new exit (range 8) 14898 | -5/Upper Caves | Learned Factory terminal intel 14934 | -5/Upper Caves | Attracted the attention of an 0b10 checkpoint 15006 | -5/Upper Caves | Discovered new exit (range 11) 15051 | -5/Upper Caves | Spotted B-75 Beast 15053 | -5/Upper Caves | Destroyed B-75 Beast 15074 | -5/Upper Caves | Learned Armory terminal intel 15074 | -5/Upper Caves | Learned Armory stockpile data 15074 | -5/Upper Caves | Learned Research stockpile data 15088 | -5/Upper Caves | Identified exit to Zhirov 15088 | -5/Upper Caves | Entered Zhirov 15088 | -5/Zhirov | Discovered new exit (range 3) 15092 | -5/Zhirov | Met Zhirov 15098 | -5/Zhirov | Zhirov requested help retrieving the SGEMP Prototype 15102 | -5/Zhirov | Found Alien Artifact 15102 | -5/Zhirov | Identified Integrated Dissipator 15102 | -5/Zhirov | Installed Integrated Dissipator, increased core heat dissipation (+20) 15148 | -5/Zhirov | Found Alien Artifact 15156 | -5/Zhirov | Identified exit to Proximity Caves 15157 | -5/Zhirov | Entered Proximity Caves 15176 | -4/Proximity Caves | Learned Research security intel 15214 | -4/Proximity Caves | Spotter reported a threat 15234 | -4/Proximity Caves | Spotter reported a threat 15310 | -4/Proximity Caves | Learned Research stockpile data 15315 | -4/Proximity Caves | Discovered new exit (range 7) 15317 | -4/Proximity Caves | Identified exit to Factory 15318 | -4/Proximity Caves | Entered Factory 15318 | -4/Factory | Evolved 2 slots: Propulsion x1, Utility x1 15319 | -4/Factory | Identified exit to Research 15320 | -4/Factory | Loaded intel: 26 terminal locations 15365 | -4/Factory | Adv. Hacking Suite fried by hacking feedback 15402 | -4/Factory | Identified Transdimensional Reconstructor 15458 | -4/Factory | Repaired Lgt. Fission Core 15521 | -4/Factory | Identified exit to Upper Caves 15619 | -4/Factory | Spotted B-86 Titan 15628 | -4/Factory | Entered Upper Caves 15668 | -4/Upper Caves | Learned Research terminal intel 15713 | -4/Upper Caves | Encountered a Warlord checkpoint 15788 | -4/Upper Caves | Discovered new exit (range 9) 15817 | -4/Upper Caves | Identified exit to Upper Caves 15817 | -4/Upper Caves | Entered another Upper Caves area 15817 | -4/Upper Caves | Discovered exit to Research (range 7) 15846 | -4/Upper Caves | Learned Research trap positions 16028 | -4/Upper Caves | Build established: Hacker-Scout 16148 | -4/Upper Caves | Discovered new exit (range 13) 16151 | -4/Upper Caves | Identified exit to Warlord 16155 | -4/Upper Caves | Entered Warlord 16167 | -4/Warlord | Discovered new exit (range 9) 16285 | -4/Warlord | Found Prototype Device 16286 | -4/Warlord | Identified Thermal Barrier 16290 | -4/Warlord | Found Prototype Processor 16291 | -4/Warlord | Found Prototype Hackware 16325 | -4/Warlord | Warlord's base attacked by MAIN.C 16329 | -4/Warlord | Rebuked by Warlord 16341 | -4/Warlord | Found Prototype Energy Cannon 16341 | -4/Warlord | Identified Vortex Driver 16347 | -4/Warlord | Found Vortex Driver 16545 | -4/Warlord | Warlord forces counterattacked 16636 | -4/Warlord | Lost 5 allies 16719 | -4/Warlord | Lost 8 allies 16741 | -4/Warlord | Spotted Striker 16796 | -4/Warlord | Identified exit to Proximity Caves 16797 | -4/Warlord | Entered Proximity Caves 16824 | -3/Proximity Caves | Lost 20 allies 16856 | -3/Proximity Caves | Spotted B-86 Titan 16866 | -3/Proximity Caves | Destroyed B-86 Titan 16886 | -3/Proximity Caves | Discovered exit to Research (range 9) 16896 | -3/Proximity Caves | Entered Research 16896 | -3/Research | Evolved 2 slots: Utility x2 16897 | -3/Research | Identified exit to Testing 16898 | -3/Research | Loaded intel: 52 trap records 16902 | -3/Research | Loaded intel: 21 terminal locations 16907 | -3/Research | Identified Ghost Barrier 16914 | -3/Research | Identified exit to Armory 16984 | -3/Research | Found Faulty Exp. EM Disruption Field 16986 | -3/Research | Found Exp. EM Disruption Field 17005 | -3/Research | Fabricated Exp. Optical Array? 17102 | -3/Research | Loaded intel: 5 recycling unit locations 17252 | -3/Research | Discovered new exit (range 7) 17286 | -3/Research | Identified exit to Research 17307 | -3/Research | Found Prototype Protection 17307 | -3/Research | Identified Centrium Heavy Armor Plating 17313 | -3/Research | Identified Exp. Armor Integrity Analyzer 17349 | -3/Research | Entered Testing 17352 | -3/Testing | Found Spectral Analyzer 17365 | -3/Testing | Found Prototype Energy Gun 17365 | -3/Testing | Identified Tachyon Dispersion Ray 17384 | -3/Testing | Discovered exit to Research (range 9) 17389 | -3/Testing | Found Prototype Launcher 17389 | -3/Testing | Identified Com. Tesla Bomb Launcher 17520 | -3/Testing | Found Prototype Protection 17601 | -3/Testing | Identified Hvy. Regenerative Plating 17656 | -3/Testing | Learned location of 1 exit from Armory 17677 | -3/Testing | Learned 4 Research zone layouts 17688 | -3/Testing | Learned Research security intel 17690 | -3/Testing | Learned Research trap positions 17691 | -3/Testing | Learned Research recycling unit intel 17692 | -3/Testing | Learned Access stockpile data 17723 | -3/Testing | Learned location of 2 exits from Research 17728 | -3/Testing | Entered Research 17728 | -2/Research | Evolved 2 slots: Propulsion x1, Utility x1 17729 | -2/Research | Identified exit to Access 17730 | -2/Research | Identified exit to Quarantine 17732 | -2/Research | Loaded intel: 81 trap records 17735 | -2/Research | Loaded intel: 5 recycling unit locations 17848 | -2/Research | Entered Quarantine 17852 | -2/Quarantine | Cryocooling Duct disabled 17867 | -2/Quarantine | Ambient heat levels rising (+20) 17867 | -2/Quarantine | Non-combat units ordered to evacuate 17914 | -2/Quarantine | Discovered exit to Access (range 15) 17930 | -2/Quarantine | Found Alien Artifact 17948 | -2/Quarantine | Found Alien Artifact 17964 | -2/Quarantine | Found Alien Slashing Weapon 17964 | -2/Quarantine | Identified Sigix Broadsword 18044 | -2/Quarantine | Build established: Hacker-Ninja 18052 | -2/Quarantine | Spotted Fortress 18064 | -2/Quarantine | Discovered new exit (range 5) 18064 | -2/Quarantine | Discovered new exit (range 6) 18064 | -2/Quarantine | Identified exit to Protoforge 18064 | -2/Quarantine | Entered Protoforge 18158 | -2/Protoforge | Discovered exit to Access (range 15) 18199 | -2/Protoforge | Spotted Hotshot 18206 | -2/Protoforge | Spotted Hotshot 18228 | -2/Protoforge | Spotted V154-q 18264 | -2/Protoforge | Destroyed Hotshot 18269 | -2/Protoforge | Destroyed Hotshot 18271 | -2/Protoforge | Superfortress began startup sequence 18322 | -2/Protoforge | Forge Plexus network access discovered 18326 | -2/Protoforge | Spotted Immortal 18326 | -2/Protoforge | Spotted Immortal 18329 | -2/Protoforge | Spotted Decapitator 18329 | -2/Protoforge | Spotted Decapitator 18329 | -2/Protoforge | Spotted Decapitator 18337 | -2/Protoforge | Destroyed Decapitator 18350 | -2/Protoforge | Destroyed Decapitator 18354 | -2/Protoforge | Destroyed Decapitator 18459 | -2/Protoforge | Spotted V649-t 18465 | -2/Protoforge | Found Cep. Fieldthrust Drive 18483 | -2/Protoforge | Found Faulty Cep. Fieldthrust Drive 18494 | -2/Protoforge | Found Crosscalibrator 18590 | -2/Protoforge | Destroyed Immortal 18616 | -2/Protoforge | Destroyed Immortal 18625 | -2/Protoforge | Found Corrupted Exp. Jetlance 18626 | -2/Protoforge | System corruption reached 10% 18659 | -2/Protoforge | Found Cep. Antigrav Storage Unit 18730 | -2/Protoforge | Found Exp. Terror Saw 18737 | -2/Protoforge | Found Faulty Cep. Gyrokinetic System 18739 | -2/Protoforge | Found Faulty Cep. Combat Aerolev Unit 18753 | -2/Protoforge | Found Faulty Cep. Combat Aerolev Unit 18755 | -2/Protoforge | Found Faulty Cep. Gyrokinetic System 18762 | -2/Protoforge | Found Faulty Cep. Gyrokinetic System 18763 | -2/Protoforge | Found Faulty Cep. Gyrokinetic System 18939 | -2/Protoforge | Spotted Immortal 18942 | -2/Protoforge | Spotted Immortal 18970 | -2/Protoforge | Destroyed Immortal 19079 | -2/Protoforge | Destroyed Immortal 19093 | -2/Protoforge | Found Cep. NT7 Matterbank 19094 | -2/Protoforge | Found Cep. Chromion Battery 19096 | -2/Protoforge | Found Cep. Chromion Battery 19126 | -2/Protoforge | Spotted V026-r 19126 | -2/Protoforge | Spotted V991-k 19127 | -2/Protoforge | Found Faulty Cep. Melee Reflex Suite 19130 | -2/Protoforge | Found Faulty Cep. Melee Reflex Suite 19134 | -2/Protoforge | Spotted V277-s 19135 | -2/Protoforge | Found Femtoactuators 19199 | -2/Protoforge | Build established: Sprinter 19235 | -2/Protoforge | Destroyed 8 combat bots 19256 | -2/Protoforge | Found Cep. Weapon Articulator 19259 | -2/Protoforge | Found Mni. Quantum Capacitor 19282 | -2/Protoforge | Spotted Decapitator 19282 | -2/Protoforge | Spotted Decapitator 19282 | -2/Protoforge | Spotted Decapitator 19282 | -2/Protoforge | Spotted V721-k 19282 | -2/Protoforge | Spotted V208-v 19299 | -2/Protoforge | Found Cep. Zero-point Core 19301 | -2/Protoforge | Found Faulty Cep. Zero-point Core 19303 | -2/Protoforge | Found Faulty Cep. Zero-point Core 19358 | -2/Protoforge | Spotted Decapitator 19358 | -2/Protoforge | Spotted Decapitator 19358 | -2/Protoforge | Spotted Decapitator 19368 | -2/Protoforge | Destroyed V721-k 19383 | -2/Protoforge | Destroyed Decapitator 19387 | -2/Protoforge | Destroyed Decapitator 19392 | -2/Protoforge | Destroyed Decapitator 19414 | -2/Protoforge | Found Cep. Network Penetrator 19428 | -2/Protoforge | Found Cep. Network Penetrator 19430 | -2/Protoforge | Found Exp. Active Sensor Suite 19443 | -2/Protoforge | Found Femtoactuators 19455 | -2/Protoforge | Spotted Immortal 19455 | -2/Protoforge | Spotted Immortal 19516 | -2/Protoforge | Found Exp. Jetlance 19523 | -2/Protoforge | Found Cep. Miniperforator 19527 | -2/Protoforge | Found Cep. Deflector Sword 19536 | -2/Protoforge | Found Exp. Jetlance 19545 | -2/Protoforge | Found Cep. Plasma Driver 19562 | -2/Protoforge | Found Cep. Deflector Sword 19564 | -2/Protoforge | First assault squad dispatched 19571 | -2/Protoforge | Spotted AP7-3 19571 | -2/Protoforge | Spotted AP7-3 19635 | -2/Protoforge | Scanned by Researcher 19667 | -2/Protoforge | Destroyed AP7-3 19683 | -2/Protoforge | Destroyed AP7-3 19688 | -2/Protoforge | Found Exp. ECM Suite 19690 | -2/Protoforge | Found Faulty Cep. Blasthammer 19696 | -2/Protoforge | Identified Subatomic Replicator 19696 | -2/Protoforge | Used Subatomic Replicator to replicate Faulty Cep. Blasthammer 19703 | -2/Protoforge | Found Cep. Impact Drone Bay 19756 | -2/Protoforge | Additional patrols dispatched to research labs 19766 | -2/Protoforge | Found Cep. Navigation Harness 19885 | -2/Protoforge | Entered Access 19885 | -1/Access | Evolved 2 slots: Utility x1, Weapon x1 19895 | -1/Access | Spotted B-99 Colossus 20063 | -1/Access | Identified exit to Command 20114 | -1/Access | Spotted B-99 Colossus 20114 | -1/Access | Spotted B-99 Colossus 20374 | -1/Access | Entered Command 20431 | -1/Command | Spotted M Guard 20432 | -1/Command | Spotted M Guard 20432 | -1/Command | Spotted Combat Programmer 20432 | -1/Command | Spotted Combat Programmer 20474 | -1/Command | Destroyed Combat Programmer 20475 | -1/Command | Destroyed Combat Programmer 20507 | -1/Command | Destroyed 7 combat bots 20534 | -1/Command | Spotted B-99 Colossus 20698 | -1/Command | Build established: Hacker-Sprinter 20871 | -1/Command | Met MAIN.C 20874 | -1/Command | First assault squad dispatched 20891 | -1/Command | Allies destroyed MAIN.C Shell 20891 | -1/Command | MAIN.C activated Command garrisons 20892 | -1/Command | 0b10 Conduit disabled 20940 | -1/Command | Destroyed MAIN.C 20941 | -1/Command | Identified Terrabomb 20941 | -1/Command | Discovered new exit (range 29) 20941 | -1/Command | Discovered new exit (range 101) 20941 | -1/Command | Extracted map data and part IDs from MAIN.C's data core 20966 | -1/Command | Lost 6 parts (4n2u) 20973 | -1/Command | Lost 3 allies 20978 | -1/Command | Found Imp. Potential Cannon 20980 | -1/Command | Found Vortex Chain Reactor 20981 | -1/Command | Found Zero-point Reactor 20983 | -1/Command | Found Exp. Core Analyzer 20985 | -1/Command | Found Exp. Force Field 20987 | -1/Command | Found Exp. Force Field 20988 | -1/Command | Found Exp. Force Field 20989 | -1/Command | Found Exp. System Purifier 20998 | -1/Command | Found Exp. Phase Shifter 21060 | -1/Command | Destroyed M Guard 21065 | -1/Command | Destroyed M Guard 21065 | -1/Command | All MAIN.C guards destroyed 21208 | -1/Command | Build established: Gladiator 21816 | -1/Command | Build established: Mutant 22274 | -1/Command | Warped through subspace to slip node 22274 | -1/Command | Discovered new exit (range 5) 22284 | -1/Command | Entered Access_0 22286 | -1/Access_0 | Met Architect 22303 | -1/Access_0 | Destroyed A8 22352 | -1/Access_0 | Found Exp. Terrain Scan Processor 22354 | -1/Access_0 | Found Exp. Core Analyzer 22373 | -1/Access_0 | A6 warped into view 22388 | -1/Access_0 | Destroyed A6 22404 | -1/Access_0 | Core integrity fell below 50% 22447 | -1/Access_0 | Architect warped through subspace 22474 | -1/Access_0 | Lost 7 parts (1n5u1w) 22476 | -1/Access_0 | Found Hpw. Transdimensional Reconstructor 22476 | -1/Access_0 | Warped through subspace to slip node 22476 | -1/Access_0 | Discovered new exit (range 8) 22477 | -1/Access_0 | Core integrity fell below 20% 22481 | *** | Establishing 0b11! Last Messages --------------- 22426_ Penetrated by Quantum Shear. 22426_ Cep. Blasthammer destroyed. 22428_ Penetrated by Quantum Shear. 22431_ Quantum Shear penetrates Wall. 22433_ Penetrated by Quantum Shear. 22433_ Quantum Shear penetrates Wall. 22436_ Penetrated by Quantum Shear. 22443_ Cep. Weapon Articulator destroyed. 22443_ Penetrated by Quantum Shear. Architect warps through subspace. 22465_ Penetrated by Quantum Shear. 22471_ Quantum Shear penetrates Wall. 22474_ Workstation disabled. 22475_ Penetrated by Quantum Shear. 22475_ Quantum Shear penetrates Wall. 22476_ Acquired Hpw. Transdimensional Reconstructor. 22476_ Warped through subspace, drawn to slip node. 22476_ EXIT=FOUND 22477_ A0_RES: I have more important things to do than play hide-and-seek. Deal with this piece of junk if it returns. Map ----- +----------------------------------------------------+ | | | | | | | | | | | | | | | | | | | | | | | | | | | | | | | | | ?????????????????????????????????????????????????? | | ?????????????????????????????????????????????????? | | ?????????????????????????????????????????????????? | | ?????????????????????????????????????????????????? | | ?????????????????????????????????????????????????? | | ?????????????????????????????????????????????????? | | ????????????????????????###??????????????????????? | | ???????????????????????## ##?????????????????????? | | ???????????????????????# #?????????????????????? | | ???????????????????????# @ #?????????????????????? | | ??????????????????????## #?????????????????????? | | ??????????????????????# #?????????????????????? | | ??????????????????????# ##?????????????????????? | | ??????????????????????## #?????????????????????? | | ??????????????????????# #?????????????????????? | | ??????????????????????# ##?????????????????????? | | ??????????????????????# < #?????????????????????? | | ??????????????????????# ##?????????????????????? | | ??????????????????????## #??????????????????????? | | ???????????????????????####??????????????????????? | | ?????????????????????????????????????????????????? | | ?????????????????????????????????????????????????? | | ?????????????????????????????????????????????????? | | ?????????????????????????????????????????????????? | | ?????????????????????????????????????????????????? | | ?????????????????????????????????????????????????? | | ?????????????????????????????????????????????????? | | ?????????????????????????????????????????????????? | | ?????????????????????????????????????????????????? | | ?????????????????????????????????????????????????? | | ?????????????????????????????????????????????????? | | ?????????????????????????????????????????????????? | | ?????????????????????????????????????????????????? | | ?????????????????????????????????????????????????? | +----------------------------------------------------+ Best States ------------- Heat Dissipation 72 Energy Generation 61 Energy Capacity 1650 Matter Stores 300 Matter Capacity 300 Sight Range 24 Robot Scan Range 20 Terrain Scan Range 24 Terrain Scan Density 1010 ECM Strength 3 Jamming Range 16 Armor Coverage 825 Propulsion Shielding 66 Projectile Deflection 15 Melee Speed Boost 50 Phase Shifting 20 Evasion (%) 86 Targeting Accuracy 30 Melee Accuracy 8 Core Analysis 12 Recoil Reduction 3 Offensive Hacking 100 Defensive Hacking 20 Authchip Count 3 Trap Extractor Capacity 6 Item Schematics ----------------- CPS Tube | -6/Factory | Scanalyzed Cld. Cesium-ion Thruster | -6/Factory | Scanalyzed Exp. Signal Interpreter | -6/Factory | Scanalyzed Field Propulsion Array | -6/Factory | Scanalyzed Imp. Propulsion Shielding | -5/Factory | Scanalyzed Assault Drone Bay | -5/Zhirov | Free Exp. Heat Sink | -5/Zhirov | Free Exp. Optical Array | -5/Zhirov | Free Imp. Arc Thrower | -5/Zhirov | Free Mic. Antimatter Reactor | -4/Factory | Hacked Lgt. Fission Core | -4/Factory | Scanalyzed Adv. Reaction Control System | -4/Factory | Scanalyzed Lrn. Sensor Array | -3/Research | Hacked Helical Railgun | -3/Testing | Archive Imp. Diametric Drive | -3/Testing | Archive Cld. Gravmag System | -3/Testing | Archive Prc. Energy Filter | -2/Protoforge | Archive Com. Linear Accelerator | -2/Protoforge | Archive Robot Schematics ------------------ S-43 Plague | -3/Testing | Archive Fabricated ------------ Cld. Cesium-ion Thruster | x1 | -6/Factory | Authchip Cld. Cesium-ion Thruster | x1 | -6/Factory | Authchip Cld. Cesium-ion Thruster | x1 | -6/Factory | Authchip Cld. Cesium-ion Thruster | x1 | -6/Factory | Authchip Exp. Optical Array | x1 | -3/Research Repaired ---------- Exp. Signal Interpreter | 99% | -6/Factory | Broken Lgt. Fission Core | 11% | -4/Factory Alien Tech Used ----------------- Integrated Dissipator Sigix Broadsword Subatomic Replicator Transdimensional Reconstructor High-powered Transdimensional Reconstructor Achievements -------------- None Challenges ------------ None Game ------ Seed RapidCarbideCyclogen Manual? 0 Play Time 05:44:33 Cumulative 695.6 hours Start 2025.05.11 @ 00:41:50 End 2025.05.11 @ 07:07:14 Sessions 1 Manual Loads 0 Difficulty Rogue Special Mode None Game No. 232 Rogue 230 Adventurer 2 Explorer 0 Win Type 1 Total 38 Types 13/4/11/1/1/0/7/1/0/0 Lore% 94 Gallery% 91 Achievement% 82 Wizard Run 0 Options --------- Layout 0 ASCII 0 Keyboard 1 Movement Numpad Keybinds 0 Fullscreen 1 Font 24/Smallcaps Map View 76x50 Zoom Use 0% Tactical HUD 1 Map Filters NONE Filters NONE Steam 1 RUN: 8ae011ca-8436-49e3-8637-ecb60b2ce5af